{"text_format":"1","workbook":"xlsx","n_sheets":3,"sheets":["ورقة1","mine","a"],"not_rendered":{"charts":0,"images":0,"macros":1,"external_links":0,"defined_names":2,"comments":0,"pivot_tables":0},"unopened":[],"bounds":{"document_bytes":16777216,"sheet_cells":100000,"rows_first":2000,"rows_last":500,"rows_between":2000,"halvings":0,"cell_chars":16384,"cell_head_chars":4096},"cells_cut":0,"cells_raw":0,"read":"whole","date_system":"1900"}

{"sheet":"ورقة1","index":0,"n_rows":200,"n_cols":5,"rows_kept":200,"cut":false,"hidden":false,"merged":[]}
[]
[null,"كل المطلوبات ادناه اختيارية","بدون تفقيط الكسر","مذكر","مؤنث"]
[null,"جنس العملة",0,0,1]
[null,"اسم العملة مفرد","ريال","ريال","ليرة سورية لا غير"]
[null,"اسم العملة جمع","ريالات","ريالات","ليرات سورية لا غير"]
[null,"اسم العملة الكسرية","هللة","هللة","قرش"]
[null,"طول الكسر",2,2,2]
[null,"اسم العملة الكسرية جمع",null,"هللات","قروش"]
[null,"جنس عملة الكسر",null,1,0]
[null,null,"هذا الزر لاضافة كسر الى الرقم وازالته لمشاهدة النتائج"]
[null,"العدد","بدون تفقيط الكسر","مذكر","مؤنث"]
[null,1000,{"$f":"kh_TextNum($B12,$C$3,$C$4,$C$5,$C$6,$C$7,$C$8,$C$9)","v":"فقط ألف ريال"},{"$f":"kh_TextNum($B12,$D$3,$D$4,$D$5,$D$6,$D$7,$D$8,$D$9)","v":"فقط ألف ريال"},{"$f":"kh_TextNum(mine!R2,$E$3,$E$4,$E$5,E6,$E$7,$E$8,$E$9)","v":"فقط عشرة آلاف ليرة سورية لا غير"}]
[null,11088.011,{"$f":"kh_TextNum($B13,$C$3,$C$4,$C$5,$C$6,$C$7,$C$8,$C$9)","v":"فقط أحد عشر ألفاً وثمانية وثمانون ريالاً و (1) هللة"},{"$f":"kh_TextNum($B13,$D$3,$D$4,$D$5,$D$6,$D$7,$D$8,$D$9)","v":"فقط أحد عشر ألفاً وثمانية وثمانون ريالاً وهللة واحدة"},{"$f":"kh_TextNum($B13,$E$3,$E$4,$E$5,$E$6,$E$7,$E$8,$E$9)","v":"فقط أحد عشر ألفاً وثمان وثمانون ليرة سورية لا غير وقرش واحد"}]
[null,2.2000000000000002,"فقط ريالان اثنان و (20) هللة","فقط ريالان اثنان وعشرون هللة","فقط ليرت سوريت لا غيران اثنتان وعشرون قرشاً"]
[null,3.3,"فقط ثلاثة ريالات و (30) هللة","فقط ثلاثة ريالات وثلاثون هللة","فقط ثلاث ليرات سورية لا غير وثلاثون قرشاً"]
[null,8.8000000000000007,"فقط ثمانية ريالات و (80) هللة","فقط ثمانية ريالات وثمانون هللة","فقط ثمان ليرات سورية لا غير وثمانون قرشاً"]
[null,9.9,"فقط تسعة ريالات و (90) هللة","فقط تسعة ريالات وتسعون هللة","فقط تسع ليرات سورية لا غير وتسعون قرشاً"]
[null,10.01,"فقط عشرة ريالات و (1) هللة","فقط عشرة ريالات وهللة واحدة","فقط عشر ليرات سورية لا غير وقرش واحد"]
[null,11.11,"فقط أحد عشر ريالاً و (11) هللة","فقط أحد عشر ريالاً وإحدى عشرة هللة","فقط إحدى عشرة ليرة سورية لا غير وأحد عشر قرشاً"]
[null,12.21,"فقط اثنا عشر ريالاً و (21) هللة","فقط اثنا عشر ريالاً وإحدى وعشرون هللة","فقط اثنتا عشرة ليرة سورية لا غير وواحد وعشرون قرشاً"]
[null,13.31,"فقط ثلاثة عشر ريالاً و (31) هللة","فقط ثلاثة عشر ريالاً وإحدى وثلاثون هللة","فقط ثلاث عشرة ليرة سورية لا غير وواحد وثلاثون قرشاً"]
[null,14.41,"فقط أربعة عشر ريالاً و (41) هللة","فقط أربعة عشر ريالاً وإحدى وأربعون هللة","فقط أربع عشرة ليرة سورية لا غير وواحد وأربعون قرشاً"]
[null,100.001,"فقط مائة ريال","فقط مائة ريال","فقط مائة ليرة سورية لا غير"]
[null,3051588751.5029998,"فقط ثلاثة مليارات وواحد وخمسون مليوناً وخمسمائة وثمانية وثمانون ألفاً وسبعمائة وواحد وخمسون ريالاً و (50) هللة","فقط ثلاثة مليارات وواحد وخمسون مليوناً وخمسمائة وثمانية وثمانون ألفاً وسبعمائة وواحد وخمسون ريالاً وخمسون هللة","فقط ثلاثة مليارات وواحد وخمسون مليوناً وخمسمائة وثمانية وثمانون ألفاً وسبعمائة وإحدى وخمسون ليرة سورية لا غير وخمسون قرشاً"]
[null,201.102,"فقط مائتان وريال واحد و (10) هللة","فقط مائتان وريال واحد وعشر هللات","فقط مائتان وليرة سورية لا غير واحدة وعشرة قروش"]
[null,200.00200000000001,"فقط مائتا ريال","فقط مائتا ريال","فقط مائتا ليرة سورية لا غير"]
[null,202000000.20199999,"فقط مائتا مليون ومليونا ريال و (20) هللة","فقط مائتا مليون ومليونا ريال وعشرون هللة","فقط مائتا مليون ومليونا ليرة سورية لا غير وعشرون قرشاً"]
[null,1889728288.7809999,"فقط مليار وثمانمائة وتسعة وثمانون مليوناً وسبعمائة وثمانية وعشرون ألفاً ومائتان وثمانية وثمانون ريالاً و (78) هللة","فقط مليار وثمانمائة وتسعة وثمانون مليوناً وسبعمائة وثمانية وعشرون ألفاً ومائتان وثمانية وثمانون ريالاً وثمان وسبعون هللة","فقط مليار وثمانمائة وتسعة وثمانون مليوناً وسبعمائة وثمانية وعشرون ألفاً ومائتان وثمان وثمانون ليرة سورية لا غير وثمانية وسبعون قرشاً"]
[null,11.11,"فقط أحد عشر ريالاً و (11) هللة","فقط أحد عشر ريالاً وإحدى عشرة هللة","فقط إحدى عشرة ليرة سورية لا غير وأحد عشر قرشاً"]
[null,279637845.87199998,"فقط مائتان وتسعة وسبعون مليوناً وستمائة وسبعة وثلاثون ألفاً وثمانمائة وخمسة وأربعون ريالاً و (87) هللة","فقط مائتان وتسعة وسبعون مليوناً وستمائة وسبعة وثلاثون ألفاً وثمانمائة وخمسة وأربعون ريالاً وسبع وثمانون هللة","فقط مائتان وتسعة وسبعون مليوناً وستمائة وسبعة وثلاثون ألفاً وثمانمائة وخمس وأربعون ليرة سورية لا غير وسبعة وثمانون قرشاً"]
[null,280637845.972,"فقط مائتان وثمانون مليوناً وستمائة وسبعة وثلاثون ألفاً وثمانمائة وخمسة وأربعون ريالاً و (97) هللة","فقط مائتان وثمانون مليوناً وستمائة وسبعة وثلاثون ألفاً وثمانمائة وخمسة وأربعون ريالاً وسبع وتسعون هللة","فقط مائتان وثمانون مليوناً وستمائة وسبعة وثلاثون ألفاً وثمانمائة وخمس وأربعون ليرة سورية لا غير وسبعة وتسعون قرشاً"]
[null,281637845.08200002,"فقط مائتان وواحد وثمانون مليوناً وستمائة وسبعة وثلاثون ألفاً وثمانمائة وخمسة وأربعون ريالاً و (8) هللة","فقط مائتان وواحد وثمانون مليوناً وستمائة وسبعة وثلاثون ألفاً وثمانمائة وخمسة وأربعون ريالاً وثمان هللات","فقط مائتان وواحد وثمانون مليوناً وستمائة وسبعة وثلاثون ألفاً وثمانمائة وخمس وأربعون ليرة سورية لا غير وثمانية قروش"]
[null,279069860.87199998,"فقط مائتان وتسعة وسبعون مليوناً وتسعة وستون ألفاً وثمانمائة وستون ريالاً و (87) هللة","فقط مائتان وتسعة وسبعون مليوناً وتسعة وستون ألفاً وثمانمائة وستون ريالاً وسبع وثمانون هللة","فقط مائتان وتسعة وسبعون مليوناً وتسعة وستون ألفاً وثمانمائة وستون ليرة سورية لا غير وسبعة وثمانون قرشاً"]
[null,293677666.39200002,"فقط مائتان وثلاثة وتسعون مليوناً وستمائة وسبعة وسبعون ألفاً وستمائة وستة وستون ريالاً و (39) هللة","فقط مائتان وثلاثة وتسعون مليوناً وستمائة وسبعة وسبعون ألفاً وستمائة وستة وستون ريالاً وتسع وثلاثون هللة","فقط مائتان وثلاثة وتسعون مليوناً وستمائة وسبعة وسبعون ألفاً وستمائة وست وستون ليرة سورية لا غير وتسعة وثلاثون قرشاً"]
[null,2000.002,"فقط ألفا ريال","فقط ألفا ريال","فقط ألفا ليرة سورية لا غير"]
[null,2000000.0020000001,"فقط مليونا ريال","فقط مليونا ريال","فقط مليونا ليرة سورية لا غير"]
[null,2806.9720000000002,"فقط ألفان وثمانمائة وستة ريالات و (97) هللة","فقط ألفان وثمانمائة وستة ريالات وسبع وتسعون هللة","فقط ألفان وثمانمائة وست ليرات سورية لا غير وسبعة وتسعون قرشاً"]
[null,2802.9720000000002,"فقط ألفان وثمانمائة وريالان اثنان و (97) هللة","فقط ألفان وثمانمائة وريالان اثنان وسبع وتسعون هللة","فقط ألفان وثمانمائة وليرت سوريت لا غيران اثنتان وسبعة وتسعون قرشاً"]
[null,2812.0819999999999,"فقط ألفان وثمانمائة واثنا عشر ريالاً و (8) هللة","فقط ألفان وثمانمائة واثنا عشر ريالاً وثمان هللات","فقط ألفان وثمانمائة واثنتا عشرة ليرة سورية لا غير وثمانية قروش"]
[null,2822.1819999999998,"فقط ألفان وثمانمائة واثنان وعشرون ريالاً و (18) هللة","فقط ألفان وثمانمائة واثنان وعشرون ريالاً وثمان عشرة هللة","فقط ألفان وثمانمائة واثنتان وعشرون ليرة سورية لا غير وثمانية عشر قرشاً"]
[null,2010.1020000000001,"فقط ألفان وعشرة ريالات و (10) هللة","فقط ألفان وعشرة ريالات وعشر هللات","فقط ألفان وعشر ليرات سورية لا غير وعشرة قروش"]
[null,2600.0619999999999,"فقط ألفان وستمائة ريال و (6) هللة","فقط ألفان وستمائة ريال وست هللات","فقط ألفان وستمائة ليرة سورية لا غير وستة قروش"]
[null,2816.0819999999999,"فقط ألفان وثمانمائة وستة عشر ريالاً و (8) هللة","فقط ألفان وثمانمائة وستة عشر ريالاً وثمان هللات","فقط ألفان وثمانمائة وست عشرة ليرة سورية لا غير وثمانية قروش"]
[null,2812.0819999999999,"فقط ألفان وثمانمائة واثنا عشر ريالاً و (8) هللة","فقط ألفان وثمانمائة واثنا عشر ريالاً وثمان هللات","فقط ألفان وثمانمائة واثنتا عشرة ليرة سورية لا غير وثمانية قروش"]
[null,2822.1819999999998,"فقط ألفان وثمانمائة واثنان وعشرون ريالاً و (18) هللة","فقط ألفان وثمانمائة واثنان وعشرون ريالاً وثمان عشرة هللة","فقط ألفان وثمانمائة واثنتان وعشرون ليرة سورية لا غير وثمانية عشر قرشاً"]
[null,32000.023000000001,"فقط اثنان وثلاثون ألف ريال و (2) هللة","فقط اثنان وثلاثون ألف ريال وهللتان اثنتان","فقط اثنان وثلاثون ألف ليرة سورية لا غير وقرشان اثنان"]
[null,39966.993000000002,"فقط تسعة وثلاثون ألفاً وتسعمائة وستة وستون ريالاً و (99) هللة","فقط تسعة وثلاثون ألفاً وتسعمائة وستة وستون ريالاً وتسع وتسعون هللة","فقط تسعة وثلاثون ألفاً وتسعمائة وست وستون ليرة سورية لا غير وتسعة وتسعون قرشاً"]
[null,40198.004000000001,"فقط أربعون ألفاً ومائة وثمانية وتسعون ريالاً","فقط أربعون ألفاً ومائة وثمانية وتسعون ريالاً","فقط أربعون ألفاً ومائة وثمان وتسعون ليرة سورية لا غير"]
[null,40021.993000000002,"فقط أربعون ألفاً وواحد وعشرون ريالاً و (99) هللة","فقط أربعون ألفاً وواحد وعشرون ريالاً وتسع وتسعون هللة","فقط أربعون ألفاً وإحدى وعشرون ليرة سورية لا غير وتسعة وتسعون قرشاً"]
[null,40122.103999999999,"فقط أربعون ألفاً ومائة واثنان وعشرون ريالاً و (10) هللة","فقط أربعون ألفاً ومائة واثنان وعشرون ريالاً وعشر هللات","فقط أربعون ألفاً ومائة واثنتان وعشرون ليرة سورية لا غير وعشرة قروش"]
[null,40077.004000000001,"فقط أربعون ألفاً وسبعة وسبعون ريالاً","فقط أربعون ألفاً وسبعة وسبعون ريالاً","فقط أربعون ألفاً وسبع وسبعون ليرة سورية لا غير"]
[null,39966.993000000002,"فقط تسعة وثلاثون ألفاً وتسعمائة وستة وستون ريالاً و (99) هللة","فقط تسعة وثلاثون ألفاً وتسعمائة وستة وستون ريالاً وتسع وتسعون هللة","فقط تسعة وثلاثون ألفاً وتسعمائة وست وستون ليرة سورية لا غير وتسعة وتسعون قرشاً"]
[null,40198.004000000001,"فقط أربعون ألفاً ومائة وثمانية وتسعون ريالاً","فقط أربعون ألفاً ومائة وثمانية وتسعون ريالاً","فقط أربعون ألفاً ومائة وثمان وتسعون ليرة سورية لا غير"]
[null,40021.993000000002,"فقط أربعون ألفاً وواحد وعشرون ريالاً و (99) هللة","فقط أربعون ألفاً وواحد وعشرون ريالاً وتسع وتسعون هللة","فقط أربعون ألفاً وإحدى وعشرون ليرة سورية لا غير وتسعة وتسعون قرشاً"]
[null,40044.004000000001,"فقط أربعون ألفاً وأربعة وأربعون ريالاً","فقط أربعون ألفاً وأربعة وأربعون ريالاً","فقط أربعون ألفاً وأربع وأربعون ليرة سورية لا غير"]
[null,39876.792999999998,"فقط تسعة وثلاثون ألفاً وثمانمائة وستة وسبعون ريالاً و (79) هللة","فقط تسعة وثلاثون ألفاً وثمانمائة وستة وسبعون ريالاً وتسع وسبعون هللة","فقط تسعة وثلاثون ألفاً وثمانمائة وست وسبعون ليرة سورية لا غير وتسعة وسبعون قرشاً"]
[null,432000.234,"فقط أربعمائة واثنان وثلاثون ألف ريال و (23) هللة","فقط أربعمائة واثنان وثلاثون ألف ريال وثلاث وعشرون هللة","فقط أربعمائة واثنان وثلاثون ألف ليرة سورية لا غير وثلاثة وعشرون قرشاً"]
[null,509161.90500000003,"فقط خمسمائة وتسعة آلاف ومائة وواحد وستون ريالاً و (90) هللة","فقط خمسمائة وتسعة آلاف ومائة وواحد وستون ريالاً وتسعون هللة","فقط خمسمائة وتسعة آلاف ومائة وإحدى وستون ليرة سورية لا غير وتسعون قرشاً"]
[null,512101.21500000003,"فقط خمسمائة واثنا عشر ألفاً ومائة وريال واحد و (22) هللة","فقط خمسمائة واثنا عشر ألفاً ومائة وريال واحد واثنتان وعشرون هللة","فقط خمسمائة واثنا عشر ألفاً ومائة وليرة سورية لا غير واحدة واثنان وعشرون قرشاً"]
[null,512050.11499999999,"فقط خمسمائة واثنا عشر ألفاً وخمسون ريالاً و (12) هللة","فقط خمسمائة واثنا عشر ألفاً وخمسون ريالاً واثنتا عشرة هللة","فقط خمسمائة واثنا عشر ألفاً وخمسون ليرة سورية لا غير واثنا عشر قرشاً"]
[null,512757.11499999999,"فقط خمسمائة واثنا عشر ألفاً وسبعمائة وسبعة وخمسون ريالاً و (12) هللة","فقط خمسمائة واثنا عشر ألفاً وسبعمائة وسبعة وخمسون ريالاً واثنتا عشرة هللة","فقط خمسمائة واثنا عشر ألفاً وسبعمائة وسبع وخمسون ليرة سورية لا غير واثنا عشر قرشاً"]
[null,514858.315,"فقط خمسمائة وأربعة عشر ألفاً وثمانمائة وثمانية وخمسون ريالاً و (32) هللة","فقط خمسمائة وأربعة عشر ألفاً وثمانمائة وثمانية وخمسون ريالاً واثنتان وثلاثون هللة","فقط خمسمائة وأربعة عشر ألفاً وثمانمائة وثمان وخمسون ليرة سورية لا غير واثنان وثلاثون قرشاً"]
[null,507404.70500000002,"فقط خمسمائة وسبعة آلاف وأربعمائة وأربعة ريالات و (70) هللة","فقط خمسمائة وسبعة آلاف وأربعمائة وأربعة ريالات وسبعون هللة","فقط خمسمائة وسبعة آلاف وأربعمائة وأربع ليرات سورية لا غير وسبعون قرشاً"]
[null,510202.01500000001,"فقط خمسمائة وعشرة آلاف ومائتان وريالان اثنان و (2) هللة","فقط خمسمائة وعشرة آلاف ومائتان وريالان اثنان وهللتان اثنتان","فقط خمسمائة وعشرة آلاف ومائتان وليرت سوريت لا غيران اثنتان وقرشان اثنان"]
[null,510202.01500000001,"فقط خمسمائة وعشرة آلاف ومائتان وريالان اثنان و (2) هللة","فقط خمسمائة وعشرة آلاف ومائتان وريالان اثنان وهللتان اثنتان","فقط خمسمائة وعشرة آلاف ومائتان وليرت سوريت لا غيران اثنتان وقرشان اثنان"]
[null,510616.90500000003,"فقط خمسمائة وعشرة آلاف وستمائة وستة عشر ريالاً و (90) هللة","فقط خمسمائة وعشرة آلاف وستمائة وستة عشر ريالاً وتسعون هللة","فقط خمسمائة وعشرة آلاف وستمائة وست عشرة ليرة سورية لا غير وتسعون قرشاً"]
[null,512131.11499999999,"فقط خمسمائة واثنا عشر ألفاً ومائة وواحد وثلاثون ريالاً و (12) هللة","فقط خمسمائة واثنا عشر ألفاً ومائة وواحد وثلاثون ريالاً واثنتا عشرة هللة","فقط خمسمائة واثنا عشر ألفاً ومائة وإحدى وثلاثون ليرة سورية لا غير واثنا عشر قرشاً"]
[null,6217216.1260000002,"فقط ستة ملايين ومائتان وسبعة عشر ألفاً ومائتان وستة عشر ريالاً و (13) هللة","فقط ستة ملايين ومائتان وسبعة عشر ألفاً ومائتان وستة عشر ريالاً وثلاث عشرة هللة","فقط ستة ملايين ومائتان وسبعة عشر ألفاً ومائتان وست عشرة ليرة سورية لا غير وثلاثة عشر قرشاً"]
[null,6176016.6160000004,"فقط ستة ملايين ومائة وستة وسبعون ألفاً وستة عشر ريالاً و (62) هللة","فقط ستة ملايين ومائة وستة وسبعون ألفاً وستة عشر ريالاً واثنتان وستون هللة","فقط ستة ملايين ومائة وستة وسبعون ألفاً وست عشرة ليرة سورية لا غير واثنان وستون قرشاً"]
[null,6159119.5159999998,"فقط ستة ملايين ومائة وتسعة وخمسون ألفاً ومائة وتسعة عشر ريالاً و (52) هللة","فقط ستة ملايين ومائة وتسعة وخمسون ألفاً ومائة وتسعة عشر ريالاً واثنتان وخمسون هللة","فقط ستة ملايين ومائة وتسعة وخمسون ألفاً ومائة وتسع عشرة ليرة سورية لا غير واثنان وخمسون قرشاً"]
[null,6183783.716,"فقط ستة ملايين ومائة وثلاثة وثمانون ألفاً وسبعمائة وثلاثة وثمانون ريالاً و (72) هللة","فقط ستة ملايين ومائة وثلاثة وثمانون ألفاً وسبعمائة وثلاثة وثمانون ريالاً واثنتان وسبعون هللة","فقط ستة ملايين ومائة وثلاثة وثمانون ألفاً وسبعمائة وثلاث وثمانون ليرة سورية لا غير واثنان وسبعون قرشاً"]
[null,6201221.0259999996,"فقط ستة ملايين ومائتا ألف وألف ومائتان وواحد وعشرون ريالاً و (3) هللة","فقط ستة ملايين ومائتا ألف وألف ومائتان وواحد وعشرون ريالاً وثلاث هللات","فقط ستة ملايين ومائتا ألف وألف ومائتان وإحدى وعشرون ليرة سورية لا غير وثلاثة قروش"]
[null,6246556.426,"فقط ستة ملايين ومائتان وستة وأربعون ألفاً وخمسمائة وستة وخمسون ريالاً و (43) هللة","فقط ستة ملايين ومائتان وستة وأربعون ألفاً وخمسمائة وستة وخمسون ريالاً وثلاث وأربعون هللة","فقط ستة ملايين ومائتان وستة وأربعون ألفاً وخمسمائة وست وخمسون ليرة سورية لا غير وثلاثة وأربعون قرشاً"]
[null,6304234.926,"فقط ستة ملايين وثلاثمائة وأربعة آلاف ومائتان وأربعة وثلاثون ريالاً و (93) هللة","فقط ستة ملايين وثلاثمائة وأربعة آلاف ومائتان وأربعة وثلاثون ريالاً وثلاث وتسعون هللة","فقط ستة ملايين وثلاثمائة وأربعة آلاف ومائتان وأربع وثلاثون ليرة سورية لا غير وثلاثة وتسعون قرشاً"]
[null,6151441.5159999998,"فقط ستة ملايين ومائة وواحد وخمسون ألفاً وأربعمائة وواحد وأربعون ريالاً و (52) هللة","فقط ستة ملايين ومائة وواحد وخمسون ألفاً وأربعمائة وواحد وأربعون ريالاً واثنتان وخمسون هللة","فقط ستة ملايين ومائة وواحد وخمسون ألفاً وأربعمائة وإحدى وأربعون ليرة سورية لا غير واثنان وخمسون قرشاً"]
[null,6178668.716,"فقط ستة ملايين ومائة وثمانية وسبعون ألفاً وستمائة وثمانية وستون ريالاً و (72) هللة",{"$f":"kh_TextNum($B76,$D$3,$D$4,$D$5,$D$6,$D$7,$D$8,$D$9)","v":"فقط ستة ملايين ومائة وثمانية وسبعون ألفاً وستمائة وثمانية وستون ريالاً واثنتان وسبعون هللة"},{"$f":"kh_TextNum($B76,$E$3,$E$4,$E$5,$E$6,$E$7,$E$8,$E$9)","v":"فقط ستة ملايين ومائة وثمانية وسبعون ألفاً وستمائة وثمان وستون ليرة سورية لا غير واثنان وسبعون قرشاً"}]
[null,6275224.6260000002,{"$f":"kh_TextNum($B77,$C$3,$C$4,$C$5,$C$6,$C$7,$C$8,$C$9)","v":"فقط ستة ملايين ومائتان وخمسة وسبعون ألفاً ومائتان وأربعة وعشرون ريالاً و (63) هللة"},"فقط ستة ملايين ومائتان وخمسة وسبعون ألفاً ومائتان وأربعة وعشرون ريالاً وثلاث وستون هللة","فقط ستة ملايين ومائتان وخمسة وسبعون ألفاً ومائتان وأربع وعشرون ليرة سورية لا غير وثلاثة وستون قرشاً"]
[null,6246016.3260000004,"فقط ستة ملايين ومائتان وستة وأربعون ألفاً وستة عشر ريالاً و (33) هللة","فقط ستة ملايين ومائتان وستة وأربعون ألفاً وستة عشر ريالاً وثلاث وثلاثون هللة","فقط ستة ملايين ومائتان وستة وأربعون ألفاً وست عشرة ليرة سورية لا غير وثلاثة وثلاثون قرشاً"]
[null,74885157.746999994,"فقط أربعة وسبعون مليوناً وثمانمائة وخمسة وثمانون ألفاً ومائة وسبعة وخمسون ريالاً و (75) هللة","فقط أربعة وسبعون مليوناً وثمانمائة وخمسة وثمانون ألفاً ومائة وسبعة وخمسون ريالاً وخمس وسبعون هللة","فقط أربعة وسبعون مليوناً وثمانمائة وخمسة وثمانون ألفاً ومائة وسبع وخمسون ليرة سورية لا غير وخمسة وسبعون قرشاً"]
[null,73443624.437000006,"فقط ثلاثة وسبعون مليوناً وأربعمائة وثلاثة وأربعون ألفاً وستمائة وأربعة وعشرون ريالاً و (44) هللة","فقط ثلاثة وسبعون مليوناً وأربعمائة وثلاثة وأربعون ألفاً وستمائة وأربعة وعشرون ريالاً وأربع وأربعون هللة","فقط ثلاثة وسبعون مليوناً وأربعمائة وثلاثة وأربعون ألفاً وستمائة وأربع وعشرون ليرة سورية لا غير وأربعة وأربعون قرشاً"]
[null,75110211.056999996,"فقط خمسة وسبعون مليوناً ومائة وعشرة آلاف ومائتان وأحد عشر ريالاً و (6) هللة","فقط خمسة وسبعون مليوناً ومائة وعشرة آلاف ومائتان وأحد عشر ريالاً وست هللات","فقط خمسة وسبعون مليوناً ومائة وعشرة آلاف ومائتان وإحدى عشرة ليرة سورية لا غير وستة قروش"]
[null,73411221.336999997,"فقط ثلاثة وسبعون مليوناً وأربعمائة وأحد عشر ألفاً ومائتان وواحد وعشرون ريالاً و (34) هللة","فقط ثلاثة وسبعون مليوناً وأربعمائة وأحد عشر ألفاً ومائتان وواحد وعشرون ريالاً وأربع وثلاثون هللة","فقط ثلاثة وسبعون مليوناً وأربعمائة وأحد عشر ألفاً ومائتان وإحدى وعشرون ليرة سورية لا غير وأربعة وثلاثون قرشاً"]
[null,74337372.246999994,"فقط أربعة وسبعون مليوناً وثلاثمائة وسبعة وثلاثون ألفاً وثلاثمائة واثنان وسبعون ريالاً و (25) هللة","فقط أربعة وسبعون مليوناً وثلاثمائة وسبعة وثلاثون ألفاً وثلاثمائة واثنان وسبعون ريالاً وخمس وعشرون هللة","فقط أربعة وسبعون مليوناً وثلاثمائة وسبعة وثلاثون ألفاً وثلاثمائة واثنتان وسبعون ليرة سورية لا غير وخمسة وعشرون قرشاً"]
[null,76144044.166999996,"فقط ستة وسبعون مليوناً ومائة وأربعة وأربعون ألفاً وأربعة وأربعون ريالاً و (17) هللة","فقط ستة وسبعون مليوناً ومائة وأربعة وأربعون ألفاً وأربعة وأربعون ريالاً وسبع عشرة هللة","فقط ستة وسبعون مليوناً ومائة وأربعة وأربعون ألفاً وأربع وأربعون ليرة سورية لا غير وسبعة عشر قرشاً"]
[null,74003339.937000006,"فقط أربعة وسبعون مليوناً وثلاثة آلاف وثلاثمائة وتسعة وثلاثون ريالاً و (94) هللة","فقط أربعة وسبعون مليوناً وثلاثة آلاف وثلاثمائة وتسعة وثلاثون ريالاً وأربع وتسعون هللة","فقط أربعة وسبعون مليوناً وثلاثة آلاف وثلاثمائة وتسع وثلاثون ليرة سورية لا غير وأربعة وتسعون قرشاً"]
[null,73391928.237000003,"فقط ثلاثة وسبعون مليوناً وثلاثمائة وواحد وتسعون ألفاً وتسعمائة وثمانية وعشرون ريالاً و (24) هللة","فقط ثلاثة وسبعون مليوناً وثلاثمائة وواحد وتسعون ألفاً وتسعمائة وثمانية وعشرون ريالاً وأربع وعشرون هللة","فقط ثلاثة وسبعون مليوناً وثلاثمائة وواحد وتسعون ألفاً وتسعمائة وثمان وعشرون ليرة سورية لا غير وأربعة وعشرون قرشاً"]
[null,75400709.356999993,"فقط خمسة وسبعون مليوناً وأربعمائة ألف وسبعمائة وتسعة ريالات و (36) هللة","فقط خمسة وسبعون مليوناً وأربعمائة ألف وسبعمائة وتسعة ريالات وست وثلاثون هللة","فقط خمسة وسبعون مليوناً وأربعمائة ألف وسبعمائة وتسع ليرات سورية لا غير وستة وثلاثون قرشاً"]
[null,73633932.636999995,"فقط ثلاثة وسبعون مليوناً وستمائة وثلاثة وثلاثون ألفاً وتسعمائة واثنان وثلاثون ريالاً و (64) هللة","فقط ثلاثة وسبعون مليوناً وستمائة وثلاثة وثلاثون ألفاً وتسعمائة واثنان وثلاثون ريالاً وأربع وستون هللة","فقط ثلاثة وسبعون مليوناً وستمائة وثلاثة وثلاثون ألفاً وتسعمائة واثنتان وثلاثون ليرة سورية لا غير وأربعة وستون قرشاً"]
[null,73535552.537,"فقط ثلاثة وسبعون مليوناً وخمسمائة وخمسة وثلاثون ألفاً وخمسمائة واثنان وخمسون ريالاً و (54) هللة","فقط ثلاثة وسبعون مليوناً وخمسمائة وخمسة وثلاثون ألفاً وخمسمائة واثنان وخمسون ريالاً وأربع وخمسون هللة","فقط ثلاثة وسبعون مليوناً وخمسمائة وخمسة وثلاثون ألفاً وخمسمائة واثنتان وخمسون ليرة سورية لا غير وأربعة وخمسون قرشاً"]
[null,845163470.44799995,"فقط ثمانمائة وخمسة وأربعون مليوناً ومائة وثلاثة وستون ألفاً وأربعمائة وسبعون ريالاً و (45) هللة","فقط ثمانمائة وخمسة وأربعون مليوناً ومائة وثلاثة وستون ألفاً وأربعمائة وسبعون ريالاً وخمس وأربعون هللة","فقط ثمانمائة وخمسة وأربعون مليوناً ومائة وثلاثة وستون ألفاً وأربعمائة وسبعون ليرة سورية لا غير وخمسة وأربعون قرشاً"]
[null,846954459.648,"فقط ثمانمائة وستة وأربعون مليوناً وتسعمائة وأربعة وخمسون ألفاً وأربعمائة وتسعة وخمسون ريالاً و (65) هللة","فقط ثمانمائة وستة وأربعون مليوناً وتسعمائة وأربعة وخمسون ألفاً وأربعمائة وتسعة وخمسون ريالاً وخمس وستون هللة","فقط ثمانمائة وستة وأربعون مليوناً وتسعمائة وأربعة وخمسون ألفاً وأربعمائة وتسع وخمسون ليرة سورية لا غير وخمسة وستون قرشاً"]
[null,840595584.04799998,"فقط ثمانمائة وأربعون مليوناً وخمسمائة وخمسة وتسعون ألفاً وخمسمائة وأربعة وثمانون ريالاً و (5) هللة","فقط ثمانمائة وأربعون مليوناً وخمسمائة وخمسة وتسعون ألفاً وخمسمائة وأربعة وثمانون ريالاً وخمس هللات","فقط ثمانمائة وأربعون مليوناً وخمسمائة وخمسة وتسعون ألفاً وخمسمائة وأربع وثمانون ليرة سورية لا غير وخمسة قروش"]
[null,848020030.74800003,"فقط ثمانمائة وثمانية وأربعون مليوناً وعشرون ألفاً وثلاثون ريالاً و (75) هللة","فقط ثمانمائة وثمانية وأربعون مليوناً وعشرون ألفاً وثلاثون ريالاً وخمس وسبعون هللة","فقط ثمانمائة وثمانية وأربعون مليوناً وعشرون ألفاً وثلاثون ليرة سورية لا غير وخمسة وسبعون قرشاً"]
[null,842457754.24800003,"فقط ثمانمائة واثنان وأربعون مليوناً وأربعمائة وسبعة وخمسون ألفاً وسبعمائة وأربعة وخمسون ريالاً و (25) هللة","فقط ثمانمائة واثنان وأربعون مليوناً وأربعمائة وسبعة وخمسون ألفاً وسبعمائة وأربعة وخمسون ريالاً وخمس وعشرون هللة","فقط ثمانمائة واثنان وأربعون مليوناً وأربعمائة وسبعة وخمسون ألفاً وسبعمائة وأربع وخمسون ليرة سورية لا غير وخمسة وعشرون قرشاً"]
[null,836632335.63800001,"فقط ثمانمائة وستة وثلاثون مليوناً وستمائة واثنان وثلاثون ألفاً وثلاثمائة وخمسة وثلاثون ريالاً و (64) هللة","فقط ثمانمائة وستة وثلاثون مليوناً وستمائة واثنان وثلاثون ألفاً وثلاثمائة وخمسة وثلاثون ريالاً وأربع وستون هللة","فقط ثمانمائة وستة وثلاثون مليوناً وستمائة واثنان وثلاثون ألفاً وثلاثمائة وخمس وثلاثون ليرة سورية لا غير وأربعة وستون قرشاً"]
[null,857356543.75800002,"فقط ثمانمائة وسبعة وخمسون مليوناً وثلاثمائة وستة وخمسون ألفاً وخمسمائة وثلاثة وأربعون ريالاً و (76) هللة","فقط ثمانمائة وسبعة وخمسون مليوناً وثلاثمائة وستة وخمسون ألفاً وخمسمائة وثلاثة وأربعون ريالاً وست وسبعون هللة","فقط ثمانمائة وسبعة وخمسون مليوناً وثلاثمائة وستة وخمسون ألفاً وخمسمائة وثلاث وأربعون ليرة سورية لا غير وستة وسبعون قرشاً"]
[null,844265671.34800005,"فقط ثمانمائة وأربعة وأربعون مليوناً ومائتان وخمسة وستون ألفاً وستمائة وواحد وسبعون ريالاً و (35) هللة","فقط ثمانمائة وأربعة وأربعون مليوناً ومائتان وخمسة وستون ألفاً وستمائة وواحد وسبعون ريالاً وخمس وثلاثون هللة","فقط ثمانمائة وأربعة وأربعون مليوناً ومائتان وخمسة وستون ألفاً وستمائة وإحدى وسبعون ليرة سورية لا غير وخمسة وثلاثون قرشاً"]
[null,842305602.24800003,"فقط ثمانمائة واثنان وأربعون مليوناً وثلاثمائة وخمسة آلاف وستمائة وريالان اثنان و (25) هللة","فقط ثمانمائة واثنان وأربعون مليوناً وثلاثمائة وخمسة آلاف وستمائة وريالان اثنان وخمس وعشرون هللة","فقط ثمانمائة واثنان وأربعون مليوناً وثلاثمائة وخمسة آلاف وستمائة وليرت سوريت لا غيران اثنتان وخمسة وعشرون قرشاً"]
[null,848221221.84800005,"فقط ثمانمائة وثمانية وأربعون مليوناً ومائتان وواحد وعشرون ألفاً ومائتان وواحد وعشرون ريالاً و (85) هللة","فقط ثمانمائة وثمانية وأربعون مليوناً ومائتان وواحد وعشرون ألفاً ومائتان وواحد وعشرون ريالاً وخمس وثمانون هللة","فقط ثمانمائة وثمانية وأربعون مليوناً ومائتان وواحد وعشرون ألفاً ومائتان وإحدى وعشرون ليرة سورية لا غير وخمسة وثمانون قرشاً"]
[null,841030029.04799998,"فقط ثمانمائة وواحد وأربعون مليوناً وثلاثون ألفاً وتسعة وعشرون ريالاً و (5) هللة","فقط ثمانمائة وواحد وأربعون مليوناً وثلاثون ألفاً وتسعة وعشرون ريالاً وخمس هللات","فقط ثمانمائة وواحد وأربعون مليوناً وثلاثون ألفاً وتسع وعشرون ليرة سورية لا غير وخمسة قروش"]
[null,9576432256.6590004,"فقط تسعة مليارات وخمسمائة وستة وسبعون مليوناً وأربعمائة واثنان وثلاثون ألفاً ومائتان وستة وخمسون ريالاً و (66) هللة","فقط تسعة مليارات وخمسمائة وستة وسبعون مليوناً وأربعمائة واثنان وثلاثون ألفاً ومائتان وستة وخمسون ريالاً وست وستون هللة","فقط تسعة مليارات وخمسمائة وستة وسبعون مليوناً وأربعمائة واثنان وثلاثون ألفاً ومائتان وست وخمسون ليرة سورية لا غير وستة وستون قرشاً"]
[null,9541479741.3589993,"فقط تسعة مليارات وخمسمائة وواحد وأربعون مليوناً وأربعمائة وتسعة وسبعون ألفاً وسبعمائة وواحد وأربعون ريالاً و (36) هللة","فقط تسعة مليارات وخمسمائة وواحد وأربعون مليوناً وأربعمائة وتسعة وسبعون ألفاً وسبعمائة وواحد وأربعون ريالاً وست وثلاثون هللة","فقط تسعة مليارات وخمسمائة وواحد وأربعون مليوناً وأربعمائة وتسعة وسبعون ألفاً وسبعمائة وإحدى وأربعون ليرة سورية لا غير وستة وثلاثون قرشاً"]
[null,9484679664.7490005,"فقط تسعة مليارات وأربعمائة وأربعة وثمانون مليوناً وستمائة وتسعة وسبعون ألفاً وستمائة وأربعة وستون ريالاً و (75) هللة","فقط تسعة مليارات وأربعمائة وأربعة وثمانون مليوناً وستمائة وتسعة وسبعون ألفاً وستمائة وأربعة وستون ريالاً وخمس وسبعون هللة","فقط تسعة مليارات وأربعمائة وأربعة وثمانون مليوناً وستمائة وتسعة وسبعون ألفاً وستمائة وأربع وستون ليرة سورية لا غير وخمسة وسبعون قرشاً"]
[null,9627782976.2689991,"فقط تسعة مليارات وستمائة وسبعة وعشرون مليوناً وسبعمائة واثنان وثمانون ألفاً وتسعمائة وستة وسبعون ريالاً و (27) هللة","فقط تسعة مليارات وستمائة وسبعة وعشرون مليوناً وسبعمائة واثنان وثمانون ألفاً وتسعمائة وستة وسبعون ريالاً وسبع وعشرون هللة","فقط تسعة مليارات وستمائة وسبعة وعشرون مليوناً وسبعمائة واثنان وثمانون ألفاً وتسعمائة وست وسبعون ليرة سورية لا غير وسبعة وعشرون قرشاً"]
[null,9521347421.2590008,"فقط تسعة مليارات وخمسمائة وواحد وعشرون مليوناً وثلاثمائة وسبعة وأربعون ألفاً وأربعمائة وواحد وعشرون ريالاً و (26) هللة","فقط تسعة مليارات وخمسمائة وواحد وعشرون مليوناً وثلاثمائة وسبعة وأربعون ألفاً وأربعمائة وواحد وعشرون ريالاً وست وعشرون هللة","فقط تسعة مليارات وخمسمائة وواحد وعشرون مليوناً وثلاثمائة وسبعة وأربعون ألفاً وأربعمائة وإحدى وعشرون ليرة سورية لا غير وستة وعشرون قرشاً"]
[null,9600343320.0690002,"فقط تسعة مليارات وستمائة مليون وثلاثمائة وثلاثة وأربعون ألفاً وثلاثمائة وعشرون ريالاً و (7) هللة","فقط تسعة مليارات وستمائة مليون وثلاثمائة وثلاثة وأربعون ألفاً وثلاثمائة وعشرون ريالاً وسبع هللات","فقط تسعة مليارات وستمائة مليون وثلاثمائة وثلاثة وأربعون ألفاً وثلاثمائة وعشرون ليرة سورية لا غير وسبعة قروش"]
[null,9587925386.8589993,"فقط تسعة مليارات وخمسمائة وسبعة وثمانون مليوناً وتسعمائة وخمسة وعشرون ألفاً وثلاثمائة وستة وثمانون ريالاً و (86) هللة","فقط تسعة مليارات وخمسمائة وسبعة وثمانون مليوناً وتسعمائة وخمسة وعشرون ألفاً وثلاثمائة وستة وثمانون ريالاً وست وثمانون هللة","فقط تسعة مليارات وخمسمائة وسبعة وثمانون مليوناً وتسعمائة وخمسة وعشرون ألفاً وثلاثمائة وست وثمانون ليرة سورية لا غير وستة وثمانون قرشاً"]
[null,9623181813.1690006,"فقط تسعة مليارات وستمائة وثلاثة وعشرون مليوناً ومائة وواحد وثمانون ألفاً وثمانمائة وثلاثة عشر ريالاً و (17) هللة","فقط تسعة مليارات وستمائة وثلاثة وعشرون مليوناً ومائة وواحد وثمانون ألفاً وثمانمائة وثلاثة عشر ريالاً وسبع عشرة هللة","فقط تسعة مليارات وستمائة وثلاثة وعشرون مليوناً ومائة وواحد وثمانون ألفاً وثمانمائة وثلاث عشرة ليرة سورية لا غير وسبعة عشر قرشاً"]
[null,9622854581.2689991,"فقط تسعة مليارات وستمائة واثنان وعشرون مليوناً وثمانمائة وأربعة وخمسون ألفاً وخمسمائة وواحد وثمانون ريالاً و (27) هللة","فقط تسعة مليارات وستمائة واثنان وعشرون مليوناً وثمانمائة وأربعة وخمسون ألفاً وخمسمائة وواحد وثمانون ريالاً وسبع وعشرون هللة","فقط تسعة مليارات وستمائة واثنان وعشرون مليوناً وثمانمائة وأربعة وخمسون ألفاً وخمسمائة وإحدى وثمانون ليرة سورية لا غير وسبعة وعشرون قرشاً"]
[null,9587065606.7590008,"فقط تسعة مليارات وخمسمائة وسبعة وثمانون مليوناً وخمسة وستون ألفاً وستمائة وستة ريالات و (76) هللة","فقط تسعة مليارات وخمسمائة وسبعة وثمانون مليوناً وخمسة وستون ألفاً وستمائة وستة ريالات وست وسبعون هللة","فقط تسعة مليارات وخمسمائة وسبعة وثمانون مليوناً وخمسة وستون ألفاً وستمائة وست ليرات سورية لا غير وستة وسبعون قرشاً"]
[null,9535205014.3589993,"فقط تسعة مليارات وخمسمائة وخمسة وثلاثون مليوناً ومائتان وخمسة آلاف وأربعة عشر ريالاً و (36) هللة","فقط تسعة مليارات وخمسمائة وخمسة وثلاثون مليوناً ومائتان وخمسة آلاف وأربعة عشر ريالاً وست وثلاثون هللة","فقط تسعة مليارات وخمسمائة وخمسة وثلاثون مليوناً ومائتان وخمسة آلاف وأربع عشرة ليرة سورية لا غير وستة وثلاثون قرشاً"]
[null,166886122787.561,"فقط مائة وستة وستون ملياراً وثمانمائة وستة وثمانون مليوناً ومائة واثنان وعشرون ألفاً وسبعمائة وسبعة وثمانون ريالاً و (56) هللة","فقط مائة وستة وستون ملياراً وثمانمائة وستة وثمانون مليوناً ومائة واثنان وعشرون ألفاً وسبعمائة وسبعة وثمانون ريالاً وست وخمسون هللة","فقط مائة وستة وستون ملياراً وثمانمائة وستة وثمانون مليوناً ومائة واثنان وعشرون ألفاً وسبعمائة وسبع وثمانون ليرة سورية لا غير وستة وخمسون قرشاً"]
[null,168477727774.86099,"فقط مائة وثمانية وستون ملياراً وأربعمائة وسبعة وسبعون مليوناً وسبعمائة وسبعة وعشرون ألفاً وسبعمائة وأربعة وسبعون ريالاً و (86) هللة","فقط مائة وثمانية وستون ملياراً وأربعمائة وسبعة وسبعون مليوناً وسبعمائة وسبعة وعشرون ألفاً وسبعمائة وأربعة وسبعون ريالاً وست وثمانون هللة","فقط مائة وثمانية وستون ملياراً وأربعمائة وسبعة وسبعون مليوناً وسبعمائة وسبعة وعشرون ألفاً وسبعمائة وأربع وسبعون ليرة سورية لا غير وستة وثمانون قرشاً"]
[null,172964243558.271,"فقط مائة واثنان وسبعون ملياراً وتسعمائة وأربعة وستون مليوناً ومائتان وثلاثة وأربعون ألفاً وخمسمائة وثمانية وخمسون ريالاً و (27) هللة","فقط مائة واثنان وسبعون ملياراً وتسعمائة وأربعة وستون مليوناً ومائتان وثلاثة وأربعون ألفاً وخمسمائة وثمانية وخمسون ريالاً وسبع وعشرون هللة","فقط مائة واثنان وسبعون ملياراً وتسعمائة وأربعة وستون مليوناً ومائتان وثلاثة وأربعون ألفاً وخمسمائة وثمان وخمسون ليرة سورية لا غير وسبعة وعشرون قرشاً"]
[null,175042819239.47101,"فقط مائة وخمسة وسبعون ملياراً واثنان وأربعون مليوناً وثمانمائة وتسعة عشر ألفاً ومائتان وتسعة وثلاثون ريالاً و (47) هللة","فقط مائة وخمسة وسبعون ملياراً واثنان وأربعون مليوناً وثمانمائة وتسعة عشر ألفاً ومائتان وتسعة وثلاثون ريالاً وسبع وأربعون هللة","فقط مائة وخمسة وسبعون ملياراً واثنان وأربعون مليوناً وثمانمائة وتسعة عشر ألفاً ومائتان وتسع وثلاثون ليرة سورية لا غير وسبعة وأربعون قرشاً"]
[null,175874131378.57101,"فقط مائة وخمسة وسبعون ملياراً وثمانمائة وأربعة وسبعون مليوناً ومائة وواحد وثلاثون ألفاً وثلاثمائة وثمانية وسبعون ريالاً و (57) هللة","فقط مائة وخمسة وسبعون ملياراً وثمانمائة وأربعة وسبعون مليوناً ومائة وواحد وثلاثون ألفاً وثلاثمائة وثمانية وسبعون ريالاً وسبع وخمسون هللة","فقط مائة وخمسة وسبعون ملياراً وثمانمائة وأربعة وسبعون مليوناً ومائة وواحد وثلاثون ألفاً وثلاثمائة وثمان وسبعون ليرة سورية لا غير وسبعة وخمسون قرشاً"]
[null,171136969641.07101,"فقط مائة وواحد وسبعون ملياراً ومائة وستة وثلاثون مليوناً وتسعمائة وتسعة وستون ألفاً وستمائة وواحد وأربعون ريالاً و (7) هللة","فقط مائة وواحد وسبعون ملياراً ومائة وستة وثلاثون مليوناً وتسعمائة وتسعة وستون ألفاً وستمائة وواحد وأربعون ريالاً وسبع هللات","فقط مائة وواحد وسبعون ملياراً ومائة وستة وثلاثون مليوناً وتسعمائة وتسعة وستون ألفاً وستمائة وإحدى وأربعون ليرة سورية لا غير وسبعة قروش"]
[null,166165707561.66101,"فقط مائة وستة وستون ملياراً ومائة وخمسة وستون مليوناً وسبعمائة وسبعة آلاف وخمسمائة وواحد وستون ريالاً و (66) هللة","فقط مائة وستة وستون ملياراً ومائة وخمسة وستون مليوناً وسبعمائة وسبعة آلاف وخمسمائة وواحد وستون ريالاً وست وستون هللة","فقط مائة وستة وستون ملياراً ومائة وخمسة وستون مليوناً وسبعمائة وسبعة آلاف وخمسمائة وإحدى وستون ليرة سورية لا غير وستة وستون قرشاً"]
[null,172700091006.17099,"فقط مائة واثنان وسبعون ملياراً وسبعمائة مليون وواحد وتسعون ألفاً وستة ريالات و (17) هللة","فقط مائة واثنان وسبعون ملياراً وسبعمائة مليون وواحد وتسعون ألفاً وستة ريالات وسبع عشرة هللة","فقط مائة واثنان وسبعون ملياراً وسبعمائة مليون وواحد وتسعون ألفاً وست ليرات سورية لا غير وسبعة عشر قرشاً"]
[null,166437272634.561,"فقط مائة وستة وستون ملياراً وأربعمائة وسبعة وثلاثون مليوناً ومائتان واثنان وسبعون ألفاً وستمائة وأربعة وثلاثون ريالاً و (56) هللة","فقط مائة وستة وستون ملياراً وأربعمائة وسبعة وثلاثون مليوناً ومائتان واثنان وسبعون ألفاً وستمائة وأربعة وثلاثون ريالاً وست وخمسون هللة","فقط مائة وستة وستون ملياراً وأربعمائة وسبعة وثلاثون مليوناً ومائتان واثنان وسبعون ألفاً وستمائة وأربع وثلاثون ليرة سورية لا غير وستة وخمسون قرشاً"]
[null,175177091770.47101,"فقط مائة وخمسة وسبعون ملياراً ومائة وسبعة وسبعون مليوناً وواحد وتسعون ألفاً وسبعمائة وسبعون ريالاً و (47) هللة","فقط مائة وخمسة وسبعون ملياراً ومائة وسبعة وسبعون مليوناً وواحد وتسعون ألفاً وسبعمائة وسبعون ريالاً وسبع وأربعون هللة","فقط مائة وخمسة وسبعون ملياراً ومائة وسبعة وسبعون مليوناً وواحد وتسعون ألفاً وسبعمائة وسبعون ليرة سورية لا غير وسبعة وأربعون قرشاً"]
[null,155378716872.55099,"فقط مائة وخمسة وخمسون ملياراً وثلاثمائة وثمانية وسبعون مليوناً وسبعمائة وستة عشر ألفاً وثمانمائة واثنان وسبعون ريالاً و (55) هللة","فقط مائة وخمسة وخمسون ملياراً وثلاثمائة وثمانية وسبعون مليوناً وسبعمائة وستة عشر ألفاً وثمانمائة واثنان وسبعون ريالاً وخمس وخمسون هللة","فقط مائة وخمسة وخمسون ملياراً وثلاثمائة وثمانية وسبعون مليوناً وسبعمائة وستة عشر ألفاً وثمانمائة واثنتان وسبعون ليرة سورية لا غير وخمسة وخمسون قرشاً"]
[null,1920485885730.29,"فقط بليون وتسعمائة وعشرون ملياراً وأربعمائة وخمسة وثمانون مليوناً وثمانمائة وخمسة وثمانون ألفاً وسبعمائة وثلاثون ريالاً و (29) هللة","فقط بليون وتسعمائة وعشرون ملياراً وأربعمائة وخمسة وثمانون مليوناً وثمانمائة وخمسة وثمانون ألفاً وسبعمائة وثلاثون ريالاً وتسع وعشرون هللة","فقط بليون وتسعمائة وعشرون ملياراً وأربعمائة وخمسة وثمانون مليوناً وثمانمائة وخمسة وثمانون ألفاً وسبعمائة وثلاثون ليرة سورية لا غير وتسعة وعشرون قرشاً"]
[null,1928762101787.1899,"فقط بليون وتسعمائة وثمانية وعشرون ملياراً وسبعمائة واثنان وستون مليوناً ومائة ألف وألف وسبعمائة وسبعة وثمانون ريالاً و (19) هللة","فقط بليون وتسعمائة وثمانية وعشرون ملياراً وسبعمائة واثنان وستون مليوناً ومائة ألف وألف وسبعمائة وسبعة وثمانون ريالاً وتسع عشرة هللة","فقط بليون وتسعمائة وثمانية وعشرون ملياراً وسبعمائة واثنان وستون مليوناً ومائة ألف وألف وسبعمائة وسبع وثمانون ليرة سورية لا غير وتسعة عشر قرشاً"]
[null,1910296886919.0901,"فقط بليون وتسعمائة وعشرة مليارات ومائتان وستة وتسعون مليوناً وثمانمائة وستة وثمانون ألفاً وتسعمائة وتسعة عشر ريالاً و (9) هللة","فقط بليون وتسعمائة وعشرة مليارات ومائتان وستة وتسعون مليوناً وثمانمائة وستة وثمانون ألفاً وتسعمائة وتسعة عشر ريالاً وتسع هللات","فقط بليون وتسعمائة وعشرة مليارات ومائتان وستة وتسعون مليوناً وثمانمائة وستة وثمانون ألفاً وتسعمائة وتسع عشرة ليرة سورية لا غير وتسعة قروش"]
[null,1899129340209.98,"فقط بليون وثمانمائة وتسعة وتسعون ملياراً ومائة وتسعة وعشرون مليوناً وثلاثمائة وأربعون ألفاً ومائتان وتسعة ريالات و (98) هللة","فقط بليون وثمانمائة وتسعة وتسعون ملياراً ومائة وتسعة وعشرون مليوناً وثلاثمائة وأربعون ألفاً ومائتان وتسعة ريالات وثمان وتسعون هللة","فقط بليون وثمانمائة وتسعة وتسعون ملياراً ومائة وتسعة وعشرون مليوناً وثلاثمائة وأربعون ألفاً ومائتان وتسع ليرات سورية لا غير وثمانية وتسعون قرشاً"]
[null,1845793224084.3799,"فقط بليون وثمانمائة وخمسة وأربعون ملياراً وسبعمائة وثلاثة وتسعون مليوناً ومائتان وأربعة وعشرون ألفاً وأربعة وثمانون ريالاً و (38) هللة","فقط بليون وثمانمائة وخمسة وأربعون ملياراً وسبعمائة وثلاثة وتسعون مليوناً ومائتان وأربعة وعشرون ألفاً وأربعة وثمانون ريالاً وثمان وثلاثون هللة","فقط بليون وثمانمائة وخمسة وأربعون ملياراً وسبعمائة وثلاثة وتسعون مليوناً ومائتان وأربعة وعشرون ألفاً وأربع وثمانون ليرة سورية لا غير وثمانية وثلاثون قرشاً"]
[null,1938942882498.3899,"فقط بليون وتسعمائة وثمانية وثلاثون ملياراً وتسعمائة واثنان وأربعون مليوناً وثمانمائة واثنان وثمانون ألفاً وأربعمائة وثمانية وتسعون ريالاً و (39) هللة","فقط بليون وتسعمائة وثمانية وثلاثون ملياراً وتسعمائة واثنان وأربعون مليوناً وثمانمائة واثنان وثمانون ألفاً وأربعمائة وثمانية وتسعون ريالاً وتسع وثلاثون هللة","فقط بليون وتسعمائة وثمانية وثلاثون ملياراً وتسعمائة واثنان وأربعون مليوناً وثمانمائة واثنان وثمانون ألفاً وأربعمائة وثمان وتسعون ليرة سورية لا غير وتسعة وثلاثون قرشاً"]
[null,1917326226127.1899,"فقط بليون وتسعمائة وسبعة عشر ملياراً وثلاثمائة وستة وعشرون مليوناً ومائتان وستة وعشرون ألفاً ومائة وسبعة وعشرون ريالاً و (19) هللة","فقط بليون وتسعمائة وسبعة عشر ملياراً وثلاثمائة وستة وعشرون مليوناً ومائتان وستة وعشرون ألفاً ومائة وسبعة وعشرون ريالاً وتسع عشرة هللة","فقط بليون وتسعمائة وسبعة عشر ملياراً وثلاثمائة وستة وعشرون مليوناً ومائتان وستة وعشرون ألفاً ومائة وسبع وعشرون ليرة سورية لا غير وتسعة عشر قرشاً"]
[null,2029278887738.1001,"فقط بليونان وتسعة وعشرون ملياراً ومائتان وثمانية وسبعون مليوناً وثمانمائة وسبعة وثمانون ألفاً وسبعمائة وثمانية وثلاثون ريالاً و (10) هللة","فقط بليونان وتسعة وعشرون ملياراً ومائتان وثمانية وسبعون مليوناً وثمانمائة وسبعة وثمانون ألفاً وسبعمائة وثمانية وثلاثون ريالاً وعشر هللات","فقط بليونان وتسعة وعشرون ملياراً ومائتان وثمانية وسبعون مليوناً وثمانمائة وسبعة وثمانون ألفاً وسبعمائة وثمان وثلاثون ليرة سورية لا غير وعشرة قروش"]
[null,1876348348435.78,"فقط بليون وثمانمائة وستة وسبعون ملياراً وثلاثمائة وثمانية وأربعون مليوناً وثلاثمائة وثمانية وأربعون ألفاً وأربعمائة وخمسة وثلاثون ريالاً و (78) هللة","فقط بليون وثمانمائة وستة وسبعون ملياراً وثلاثمائة وثمانية وأربعون مليوناً وثلاثمائة وثمانية وأربعون ألفاً وأربعمائة وخمسة وثلاثون ريالاً وثمان وسبعون هللة","فقط بليون وثمانمائة وستة وسبعون ملياراً وثلاثمائة وثمانية وأربعون مليوناً وثلاثمائة وثمانية وأربعون ألفاً وأربعمائة وخمس وثلاثون ليرة سورية لا غير وثمانية وسبعون قرشاً"]
[null,1837166347517.28,"فقط بليون وثمانمائة وسبعة وثلاثون ملياراً ومائة وستة وستون مليوناً وثلاثمائة وسبعة وأربعون ألفاً وخمسمائة وسبعة عشر ريالاً و (28) هللة","فقط بليون وثمانمائة وسبعة وثلاثون ملياراً ومائة وستة وستون مليوناً وثلاثمائة وسبعة وأربعون ألفاً وخمسمائة وسبعة عشر ريالاً وثمان وعشرون هللة","فقط بليون وثمانمائة وسبعة وثلاثون ملياراً ومائة وستة وستون مليوناً وثلاثمائة وسبعة وأربعون ألفاً وخمسمائة وسبع عشرة ليرة سورية لا غير وثمانية وعشرون قرشاً"]
[null,1880041221509.78,"فقط بليون وثمانمائة وثمانون ملياراً وواحد وأربعون مليوناً ومائتان وواحد وعشرون ألفاً وخمسمائة وتسعة ريالات و (78) هللة","فقط بليون وثمانمائة وثمانون ملياراً وواحد وأربعون مليوناً ومائتان وواحد وعشرون ألفاً وخمسمائة وتسعة ريالات وثمان وسبعون هللة","فقط بليون وثمانمائة وثمانون ملياراً وواحد وأربعون مليوناً ومائتان وواحد وعشرون ألفاً وخمسمائة وتسع ليرات سورية لا غير وثمانية وسبعون قرشاً"]
[null,20125867765961,"فقط عشرون بليوناً ومائة وخمسة وعشرون ملياراً وثمانمائة وسبعة وستون مليوناً وسبعمائة وخمسة وستون ألفاً وتسعمائة وواحد وستون ريالاً","فقط عشرون بليوناً ومائة وخمسة وعشرون ملياراً وثمانمائة وسبعة وستون مليوناً وسبعمائة وخمسة وستون ألفاً وتسعمائة وواحد وستون ريالاً","فقط عشرون بليوناً ومائة وخمسة وعشرون ملياراً وثمانمائة وسبعة وستون مليوناً وسبعمائة وخمسة وستون ألفاً وتسعمائة وإحدى وستون ليرة سورية لا غير"]
[null,20131512832403.102,"فقط عشرون بليوناً ومائة وواحد وثلاثون ملياراً وخمسمائة واثنا عشر مليوناً وثمانمائة واثنان وثلاثون ألفاً وأربعمائة وثلاثة ريالات و (10) هللة","فقط عشرون بليوناً ومائة وواحد وثلاثون ملياراً وخمسمائة واثنا عشر مليوناً وثمانمائة واثنان وثلاثون ألفاً وأربعمائة وثلاثة ريالات وعشر هللات","فقط عشرون بليوناً ومائة وواحد وثلاثون ملياراً وخمسمائة واثنا عشر مليوناً وثمانمائة واثنان وثلاثون ألفاً وأربعمائة وثلاث ليرات سورية لا غير وعشرة قروش"]
[null,18452392729324.398,"فقط ثمانية عشر بليوناً وأربعمائة واثنان وخمسون ملياراً وثلاثمائة واثنان وتسعون مليوناً وسبعمائة وتسعة وعشرون ألفاً وثلاثمائة وأربعة وعشرون ريالاً و (40) هللة","فقط ثمانية عشر بليوناً وأربعمائة واثنان وخمسون ملياراً وثلاثمائة واثنان وتسعون مليوناً وسبعمائة وتسعة وعشرون ألفاً وثلاثمائة وأربعة وعشرون ريالاً وأربعون هللة","فقط ثمانية عشر بليوناً وأربعمائة واثنان وخمسون ملياراً وثلاثمائة واثنان وتسعون مليوناً وسبعمائة وتسعة وعشرون ألفاً وثلاثمائة وأربع وعشرون ليرة سورية لا غير وأربعون قرشاً"]
[null,20488873838887.301,"فقط عشرون بليوناً وأربعمائة وثمانية وثمانون ملياراً وثمانمائة وثلاثة وسبعون مليوناً وثمانمائة وثمانية وثلاثون ألفاً وثمانمائة وسبعة وثمانون ريالاً و (30) هللة","فقط عشرون بليوناً وأربعمائة وثمانية وثمانون ملياراً وثمانمائة وثلاثة وسبعون مليوناً وثمانمائة وثمانية وثلاثون ألفاً وثمانمائة وسبعة وثمانون ريالاً وثلاثون هللة","فقط عشرون بليوناً وأربعمائة وثمانية وثمانون ملياراً وثمانمائة وثلاثة وسبعون مليوناً وثمانمائة وثمانية وثلاثون ألفاً وثمانمائة وسبع وثمانون ليرة سورية لا غير وثلاثون قرشاً"]
[null,20249954334994.199,"فقط عشرون بليوناً ومائتان وتسعة وأربعون ملياراً وتسعمائة وأربعة وخمسون مليوناً وثلاثمائة وأربعة وثلاثون ألفاً وتسعمائة وأربعة وتسعون ريالاً و (20) هللة","فقط عشرون بليوناً ومائتان وتسعة وأربعون ملياراً وتسعمائة وأربعة وخمسون مليوناً وثلاثمائة وأربعة وثلاثون ألفاً وتسعمائة وأربعة وتسعون ريالاً وعشرون هللة","فقط عشرون بليوناً ومائتان وتسعة وأربعون ملياراً وتسعمائة وأربعة وخمسون مليوناً وثلاثمائة وأربعة وثلاثون ألفاً وتسعمائة وأربع وتسعون ليرة سورية لا غير وعشرون قرشاً"]
[null,20827935953961.801,"فقط عشرون بليوناً وثمانمائة وسبعة وعشرون ملياراً وتسعمائة وخمسة وثلاثون مليوناً وتسعمائة وثلاثة وخمسون ألفاً وتسعمائة وواحد وستون ريالاً و (80) هللة","فقط عشرون بليوناً وثمانمائة وسبعة وعشرون ملياراً وتسعمائة وخمسة وثلاثون مليوناً وتسعمائة وثلاثة وخمسون ألفاً وتسعمائة وواحد وستون ريالاً وثمانون هللة","فقط عشرون بليوناً وثمانمائة وسبعة وعشرون ملياراً وتسعمائة وخمسة وثلاثون مليوناً وتسعمائة وثلاثة وخمسون ألفاً وتسعمائة وإحدى وستون ليرة سورية لا غير وثمانون قرشاً"]
[null,19000750494700.102,"فقط تسعة عشر بليوناً وسبعمائة وخمسون مليوناً وأربعمائة وأربعة وتسعون ألفاً وسبعمائة ريال و (10) هللة",{"$f":"kh_TextNum($B140,$D$3,$D$4,$D$5,$D$6,$D$7,$D$8,$D$9)","v":"فقط تسعة عشر بليوناً وسبعمائة وخمسون مليوناً وأربعمائة وأربعة وتسعون ألفاً وسبعمائة ريال وعشر هللات"},{"$f":"kh_TextNum($B140,$E$3,$E$4,$E$5,$E$6,$E$7,$E$8,$E$9)","v":"فقط تسعة عشر بليوناً وسبعمائة وخمسون مليوناً وأربعمائة وأربعة وتسعون ألفاً وسبعمائة ليرة سورية لا غير وعشرة قروش"}]
[null,19990901319918.898,{"$f":"kh_TextNum($B141,$C$3,$C$4,$C$5,$C$6,$C$7,$C$8,$C$9)","v":"فقط تسعة عشر بليوناً وتسعمائة وتسعون ملياراً وتسعمائة مليون ومليون وثلاثمائة وتسعة عشر ألفاً وتسعمائة وثمانية عشر ريالاً و (90) هللة"},"فقط تسعة عشر بليوناً وتسعمائة وتسعون ملياراً وتسعمائة مليون ومليون وثلاثمائة وتسعة عشر ألفاً وتسعمائة وثمانية عشر ريالاً وتسعون هللة","فقط تسعة عشر بليوناً وتسعمائة وتسعون ملياراً وتسعمائة مليون ومليون وثلاثمائة وتسعة عشر ألفاً وتسعمائة وثمان عشرة ليرة سورية لا غير وتسعون قرشاً"]
[null,20146342034274,"فقط عشرون بليوناً ومائة وستة وأربعون ملياراً وثلاثمائة واثنان وأربعون مليوناً وأربعة وثلاثون ألفاً ومائتان وأربعة وسبعون ريالاً","فقط عشرون بليوناً ومائة وستة وأربعون ملياراً وثلاثمائة واثنان وأربعون مليوناً وأربعة وثلاثون ألفاً ومائتان وأربعة وسبعون ريالاً","فقط عشرون بليوناً ومائة وستة وأربعون ملياراً وثلاثمائة واثنان وأربعون مليوناً وأربعة وثلاثون ألفاً ومائتان وأربع وسبعون ليرة سورية لا غير"]
[null,20993829892948.801,"فقط عشرون بليوناً وتسعمائة وثلاثة وتسعون ملياراً وثمانمائة وتسعة وعشرون مليوناً وثمانمائة واثنان وتسعون ألفاً وتسعمائة وثمانية وأربعون ريالاً و (80) هللة","فقط عشرون بليوناً وتسعمائة وثلاثة وتسعون ملياراً وثمانمائة وتسعة وعشرون مليوناً وثمانمائة واثنان وتسعون ألفاً وتسعمائة وثمانية وأربعون ريالاً وثمانون هللة","فقط عشرون بليوناً وتسعمائة وثلاثة وتسعون ملياراً وثمانمائة وتسعة وعشرون مليوناً وثمانمائة واثنان وتسعون ألفاً وتسعمائة وثمان وأربعون ليرة سورية لا غير وثمانون قرشاً"]
[null,19412575556520.5,"فقط تسعة عشر بليوناً وأربعمائة واثنا عشر ملياراً وخمسمائة وخمسة وسبعون مليوناً وخمسمائة وستة وخمسون ألفاً وخمسمائة وعشرون ريالاً و (50) هللة","فقط تسعة عشر بليوناً وأربعمائة واثنا عشر ملياراً وخمسمائة وخمسة وسبعون مليوناً وخمسمائة وستة وخمسون ألفاً وخمسمائة وعشرون ريالاً وخمسون هللة","فقط تسعة عشر بليوناً وأربعمائة واثنا عشر ملياراً وخمسمائة وخمسة وسبعون مليوناً وخمسمائة وستة وخمسون ألفاً وخمسمائة وعشرون ليرة سورية لا غير وخمسون قرشاً"]
[null,210485501094694,"فقط مائتان وعشرة بلايين وأربعمائة وخمسة وثمانون ملياراً وخمسمائة مليون ومليون وأربعة وتسعون ألفاً وستمائة وأربعة وتسعون ريالاً","فقط مائتان وعشرة بلايين وأربعمائة وخمسة وثمانون ملياراً وخمسمائة مليون ومليون وأربعة وتسعون ألفاً وستمائة وأربعة وتسعون ريالاً","فقط مائتان وعشرة بلايين وأربعمائة وخمسة وثمانون ملياراً وخمسمائة مليون ومليون وأربعة وتسعون ألفاً وستمائة وأربع وتسعون ليرة سورية لا غير"]
[null,216795115521508,"فقط مائتان وستة عشر بليوناً وسبعمائة وخمسة وتسعون ملياراً ومائة وخمسة عشر مليوناً وخمسمائة وواحد وعشرون ألفاً وخمسمائة وثمانية ريالات","فقط مائتان وستة عشر بليوناً وسبعمائة وخمسة وتسعون ملياراً ومائة وخمسة عشر مليوناً وخمسمائة وواحد وعشرون ألفاً وخمسمائة وثمانية ريالات","فقط مائتان وستة عشر بليوناً وسبعمائة وخمسة وتسعون ملياراً ومائة وخمسة عشر مليوناً وخمسمائة وواحد وعشرون ألفاً وخمسمائة وثمان ليرات سورية لا غير"]
[null,195866358962678,"فقط مائة وخمسة وتسعون بليوناً وثمانمائة وستة وستون ملياراً وثلاثمائة وثمانية وخمسون مليوناً وتسعمائة واثنان وستون ألفاً وستمائة وثمانية وسبعون ريالاً","فقط مائة وخمسة وتسعون بليوناً وثمانمائة وستة وستون ملياراً وثلاثمائة وثمانية وخمسون مليوناً وتسعمائة واثنان وستون ألفاً وستمائة وثمانية وسبعون ريالاً","فقط مائة وخمسة وتسعون بليوناً وثمانمائة وستة وستون ملياراً وثلاثمائة وثمانية وخمسون مليوناً وتسعمائة واثنان وستون ألفاً وستمائة وثمان وسبعون ليرة سورية لا غير"]
[null,209103137742301,"فقط مائتان وتسعة بلايين ومائة وثلاثة مليارات ومائة وسبعة وثلاثون مليوناً وسبعمائة واثنان وأربعون ألفاً وثلاثمائة وريال واحد","فقط مائتان وتسعة بلايين ومائة وثلاثة مليارات ومائة وسبعة وثلاثون مليوناً وسبعمائة واثنان وأربعون ألفاً وثلاثمائة وريال واحد","فقط مائتان وتسعة بلايين ومائة وثلاثة مليارات ومائة وسبعة وثلاثون مليوناً وسبعمائة واثنان وأربعون ألفاً وثلاثمائة وليرة سورية لا غير واحدة"]
[null,207078761057980,"فقط مائتان وسبعة بلايين وثمانية وسبعون ملياراً وسبعمائة وواحد وستون مليوناً وسبعة وخمسون ألفاً وتسعمائة وثمانون ريالاً","فقط مائتان وسبعة بلايين وثمانية وسبعون ملياراً وسبعمائة وواحد وستون مليوناً وسبعة وخمسون ألفاً وتسعمائة وثمانون ريالاً","فقط مائتان وسبعة بلايين وثمانية وسبعون ملياراً وسبعمائة وواحد وستون مليوناً وسبعة وخمسون ألفاً وتسعمائة وثمانون ليرة سورية لا غير"]
[null,207078761057980,"فقط مائتان وسبعة بلايين وثمانية وسبعون ملياراً وسبعمائة وواحد وستون مليوناً وسبعة وخمسون ألفاً وتسعمائة وثمانون ريالاً","فقط مائتان وسبعة بلايين وثمانية وسبعون ملياراً وسبعمائة وواحد وستون مليوناً وسبعة وخمسون ألفاً وتسعمائة وثمانون ريالاً","فقط مائتان وسبعة بلايين وثمانية وسبعون ملياراً وسبعمائة وواحد وستون مليوناً وسبعة وخمسون ألفاً وتسعمائة وثمانون ليرة سورية لا غير"]
[null,207078761057980,"فقط مائتان وسبعة بلايين وثمانية وسبعون ملياراً وسبعمائة وواحد وستون مليوناً وسبعة وخمسون ألفاً وتسعمائة وثمانون ريالاً","فقط مائتان وسبعة بلايين وثمانية وسبعون ملياراً وسبعمائة وواحد وستون مليوناً وسبعة وخمسون ألفاً وتسعمائة وثمانون ريالاً","فقط مائتان وسبعة بلايين وثمانية وسبعون ملياراً وسبعمائة وواحد وستون مليوناً وسبعة وخمسون ألفاً وتسعمائة وثمانون ليرة سورية لا غير"]
[null,204295773387502,"فقط مائتان وأربعة بلايين ومائتان وخمسة وتسعون ملياراً وسبعمائة وثلاثة وسبعون مليوناً وثلاثمائة وسبعة وثمانون ألفاً وخمسمائة وريالان اثنان","فقط مائتان وأربعة بلايين ومائتان وخمسة وتسعون ملياراً وسبعمائة وثلاثة وسبعون مليوناً وثلاثمائة وسبعة وثمانون ألفاً وخمسمائة وريالان اثنان","فقط مائتان وأربعة بلايين ومائتان وخمسة وتسعون ملياراً وسبعمائة وثلاثة وسبعون مليوناً وثلاثمائة وسبعة وثمانون ألفاً وخمسمائة وليرت سوريت لا غيران اثنتان"]
[null,200181893399281,"فقط مائتا بليون ومائة وواحد وثمانون ملياراً وثمانمائة وثلاثة وتسعون مليوناً وثلاثمائة وتسعة وتسعون ألفاً ومائتان وواحد وثمانون ريالاً","فقط مائتا بليون ومائة وواحد وثمانون ملياراً وثمانمائة وثلاثة وتسعون مليوناً وثلاثمائة وتسعة وتسعون ألفاً ومائتان وواحد وثمانون ريالاً","فقط مائتا بليون ومائة وواحد وثمانون ملياراً وثمانمائة وثلاثة وتسعون مليوناً وثلاثمائة وتسعة وتسعون ألفاً ومائتان وإحدى وثمانون ليرة سورية لا غير"]
[null,209488678975885,"فقط مائتان وتسعة بلايين وأربعمائة وثمانية وثمانون ملياراً وستمائة وثمانية وسبعون مليوناً وتسعمائة وخمسة وسبعون ألفاً وثمانمائة وخمسة وثمانون ريالاً","فقط مائتان وتسعة بلايين وأربعمائة وثمانية وثمانون ملياراً وستمائة وثمانية وسبعون مليوناً وتسعمائة وخمسة وسبعون ألفاً وثمانمائة وخمسة وثمانون ريالاً","فقط مائتان وتسعة بلايين وأربعمائة وثمانية وثمانون ملياراً وستمائة وثمانية وسبعون مليوناً وتسعمائة وخمسة وسبعون ألفاً وثمانمائة وخمس وثمانون ليرة سورية لا غير"]
[null,217654914310457,"فقط مائتان وسبعة عشر بليوناً وستمائة وأربعة وخمسون ملياراً وتسعمائة وأربعة عشر مليوناً وثلاثمائة وعشرة آلاف وأربعمائة وسبعة وخمسون ريالاً","فقط مائتان وسبعة عشر بليوناً وستمائة وأربعة وخمسون ملياراً وتسعمائة وأربعة عشر مليوناً وثلاثمائة وعشرة آلاف وأربعمائة وسبعة وخمسون ريالاً","فقط مائتان وسبعة عشر بليوناً وستمائة وأربعة وخمسون ملياراً وتسعمائة وأربعة عشر مليوناً وثلاثمائة وعشرة آلاف وأربعمائة وسبع وخمسون ليرة سورية لا غير"]
[null,1501620937390260,"فقط بليار وخمسمائة بليون وبليون وستمائة وعشرون ملياراً وتسعمائة وسبعة وثلاثون مليوناً وثلاثمائة وتسعون ألفاً ومائتان وستون ريالاً","فقط بليار وخمسمائة بليون وبليون وستمائة وعشرون ملياراً وتسعمائة وسبعة وثلاثون مليوناً وثلاثمائة وتسعون ألفاً ومائتان وستون ريالاً","فقط بليار وخمسمائة بليون وبليون وستمائة وعشرون ملياراً وتسعمائة وسبعة وثلاثون مليوناً وثلاثمائة وتسعون ألفاً ومائتان وستون ليرة سورية لا غير"]
[null,1501620937390260,"فقط بليار وخمسمائة بليون وبليون وستمائة وعشرون ملياراً وتسعمائة وسبعة وثلاثون مليوناً وثلاثمائة وتسعون ألفاً ومائتان وستون ريالاً","فقط بليار وخمسمائة بليون وبليون وستمائة وعشرون ملياراً وتسعمائة وسبعة وثلاثون مليوناً وثلاثمائة وتسعون ألفاً ومائتان وستون ريالاً","فقط بليار وخمسمائة بليون وبليون وستمائة وعشرون ملياراً وتسعمائة وسبعة وثلاثون مليوناً وثلاثمائة وتسعون ألفاً ومائتان وستون ليرة سورية لا غير"]
[null,1501620937390260,"فقط بليار وخمسمائة بليون وبليون وستمائة وعشرون ملياراً وتسعمائة وسبعة وثلاثون مليوناً وثلاثمائة وتسعون ألفاً ومائتان وستون ريالاً","فقط بليار وخمسمائة بليون وبليون وستمائة وعشرون ملياراً وتسعمائة وسبعة وثلاثون مليوناً وثلاثمائة وتسعون ألفاً ومائتان وستون ريالاً","فقط بليار وخمسمائة بليون وبليون وستمائة وعشرون ملياراً وتسعمائة وسبعة وثلاثون مليوناً وثلاثمائة وتسعون ألفاً ومائتان وستون ليرة سورية لا غير"]
[null,1501620937390260,"فقط بليار وخمسمائة بليون وبليون وستمائة وعشرون ملياراً وتسعمائة وسبعة وثلاثون مليوناً وثلاثمائة وتسعون ألفاً ومائتان وستون ريالاً","فقط بليار وخمسمائة بليون وبليون وستمائة وعشرون ملياراً وتسعمائة وسبعة وثلاثون مليوناً وثلاثمائة وتسعون ألفاً ومائتان وستون ريالاً","فقط بليار وخمسمائة بليون وبليون وستمائة وعشرون ملياراً وتسعمائة وسبعة وثلاثون مليوناً وثلاثمائة وتسعون ألفاً ومائتان وستون ليرة سورية لا غير"]
[null,1513762082802760,"فقط بليار وخمسمائة وثلاثة عشر بليوناً وسبعمائة واثنان وستون ملياراً واثنان وثمانون مليوناً وثمانمائة ألف وألفان وسبعمائة وستون ريالاً","فقط بليار وخمسمائة وثلاثة عشر بليوناً وسبعمائة واثنان وستون ملياراً واثنان وثمانون مليوناً وثمانمائة ألف وألفان وسبعمائة وستون ريالاً","فقط بليار وخمسمائة وثلاثة عشر بليوناً وسبعمائة واثنان وستون ملياراً واثنان وثمانون مليوناً وثمانمائة ألف وألفان وسبعمائة وستون ليرة سورية لا غير"]
[null,1513762082802760,"فقط بليار وخمسمائة وثلاثة عشر بليوناً وسبعمائة واثنان وستون ملياراً واثنان وثمانون مليوناً وثمانمائة ألف وألفان وسبعمائة وستون ريالاً","فقط بليار وخمسمائة وثلاثة عشر بليوناً وسبعمائة واثنان وستون ملياراً واثنان وثمانون مليوناً وثمانمائة ألف وألفان وسبعمائة وستون ريالاً","فقط بليار وخمسمائة وثلاثة عشر بليوناً وسبعمائة واثنان وستون ملياراً واثنان وثمانون مليوناً وثمانمائة ألف وألفان وسبعمائة وستون ليرة سورية لا غير"]
[null,1513762082802760,"فقط بليار وخمسمائة وثلاثة عشر بليوناً وسبعمائة واثنان وستون ملياراً واثنان وثمانون مليوناً وثمانمائة ألف وألفان وسبعمائة وستون ريالاً","فقط بليار وخمسمائة وثلاثة عشر بليوناً وسبعمائة واثنان وستون ملياراً واثنان وثمانون مليوناً وثمانمائة ألف وألفان وسبعمائة وستون ريالاً","فقط بليار وخمسمائة وثلاثة عشر بليوناً وسبعمائة واثنان وستون ملياراً واثنان وثمانون مليوناً وثمانمائة ألف وألفان وسبعمائة وستون ليرة سورية لا غير"]
[null,1513762082802760,"فقط بليار وخمسمائة وثلاثة عشر بليوناً وسبعمائة واثنان وستون ملياراً واثنان وثمانون مليوناً وثمانمائة ألف وألفان وسبعمائة وستون ريالاً","فقط بليار وخمسمائة وثلاثة عشر بليوناً وسبعمائة واثنان وستون ملياراً واثنان وثمانون مليوناً وثمانمائة ألف وألفان وسبعمائة وستون ريالاً","فقط بليار وخمسمائة وثلاثة عشر بليوناً وسبعمائة واثنان وستون ملياراً واثنان وثمانون مليوناً وثمانمائة ألف وألفان وسبعمائة وستون ليرة سورية لا غير"]
[null,1513762082802760,"فقط بليار وخمسمائة وثلاثة عشر بليوناً وسبعمائة واثنان وستون ملياراً واثنان وثمانون مليوناً وثمانمائة ألف وألفان وسبعمائة وستون ريالاً","فقط بليار وخمسمائة وثلاثة عشر بليوناً وسبعمائة واثنان وستون ملياراً واثنان وثمانون مليوناً وثمانمائة ألف وألفان وسبعمائة وستون ريالاً","فقط بليار وخمسمائة وثلاثة عشر بليوناً وسبعمائة واثنان وستون ملياراً واثنان وثمانون مليوناً وثمانمائة ألف وألفان وسبعمائة وستون ليرة سورية لا غير"]
[null,1513762082802760,"فقط بليار وخمسمائة وثلاثة عشر بليوناً وسبعمائة واثنان وستون ملياراً واثنان وثمانون مليوناً وثمانمائة ألف وألفان وسبعمائة وستون ريالاً","فقط بليار وخمسمائة وثلاثة عشر بليوناً وسبعمائة واثنان وستون ملياراً واثنان وثمانون مليوناً وثمانمائة ألف وألفان وسبعمائة وستون ريالاً","فقط بليار وخمسمائة وثلاثة عشر بليوناً وسبعمائة واثنان وستون ملياراً واثنان وثمانون مليوناً وثمانمائة ألف وألفان وسبعمائة وستون ليرة سورية لا غير"]
[null,1513762082802760,"فقط بليار وخمسمائة وثلاثة عشر بليوناً وسبعمائة واثنان وستون ملياراً واثنان وثمانون مليوناً وثمانمائة ألف وألفان وسبعمائة وستون ريالاً","فقط بليار وخمسمائة وثلاثة عشر بليوناً وسبعمائة واثنان وستون ملياراً واثنان وثمانون مليوناً وثمانمائة ألف وألفان وسبعمائة وستون ريالاً","فقط بليار وخمسمائة وثلاثة عشر بليوناً وسبعمائة واثنان وستون ملياراً واثنان وثمانون مليوناً وثمانمائة ألف وألفان وسبعمائة وستون ليرة سورية لا غير"]
[null,1.5505933110133E+16,"فقط خمسة عشر بلياراً وخمسمائة وخمسة بلايين وتسعمائة وثلاثة وثلاثون ملياراً ومائة وعشرة ملايين ومائة وثلاثة وثلاثون ألف ريال","فقط خمسة عشر بلياراً وخمسمائة وخمسة بلايين وتسعمائة وثلاثة وثلاثون ملياراً ومائة وعشرة ملايين ومائة وثلاثة وثلاثون ألف ريال","فقط خمسة عشر بلياراً وخمسمائة وخمسة بلايين وتسعمائة وثلاثة وثلاثون ملياراً ومائة وعشرة ملايين ومائة وثلاثة وثلاثون ألف ليرة سورية لا غير"]
[null,1.5505933110133E+16,"فقط خمسة عشر بلياراً وخمسمائة وخمسة بلايين وتسعمائة وثلاثة وثلاثون ملياراً ومائة وعشرة ملايين ومائة وثلاثة وثلاثون ألف ريال","فقط خمسة عشر بلياراً وخمسمائة وخمسة بلايين وتسعمائة وثلاثة وثلاثون ملياراً ومائة وعشرة ملايين ومائة وثلاثة وثلاثون ألف ريال","فقط خمسة عشر بلياراً وخمسمائة وخمسة بلايين وتسعمائة وثلاثة وثلاثون ملياراً ومائة وعشرة ملايين ومائة وثلاثة وثلاثون ألف ليرة سورية لا غير"]
[null,1.5505933110133E+16,"فقط خمسة عشر بلياراً وخمسمائة وخمسة بلايين وتسعمائة وثلاثة وثلاثون ملياراً ومائة وعشرة ملايين ومائة وثلاثة وثلاثون ألف ريال","فقط خمسة عشر بلياراً وخمسمائة وخمسة بلايين وتسعمائة وثلاثة وثلاثون ملياراً ومائة وعشرة ملايين ومائة وثلاثة وثلاثون ألف ريال","فقط خمسة عشر بلياراً وخمسمائة وخمسة بلايين وتسعمائة وثلاثة وثلاثون ملياراً ومائة وعشرة ملايين ومائة وثلاثة وثلاثون ألف ليرة سورية لا غير"]
[null,1.5505933110133E+16,"فقط خمسة عشر بلياراً وخمسمائة وخمسة بلايين وتسعمائة وثلاثة وثلاثون ملياراً ومائة وعشرة ملايين ومائة وثلاثة وثلاثون ألف ريال","فقط خمسة عشر بلياراً وخمسمائة وخمسة بلايين وتسعمائة وثلاثة وثلاثون ملياراً ومائة وعشرة ملايين ومائة وثلاثة وثلاثون ألف ريال","فقط خمسة عشر بلياراً وخمسمائة وخمسة بلايين وتسعمائة وثلاثة وثلاثون ملياراً ومائة وعشرة ملايين ومائة وثلاثة وثلاثون ألف ليرة سورية لا غير"]
[null,1.5505933110133E+16,"فقط خمسة عشر بلياراً وخمسمائة وخمسة بلايين وتسعمائة وثلاثة وثلاثون ملياراً ومائة وعشرة ملايين ومائة وثلاثة وثلاثون ألف ريال","فقط خمسة عشر بلياراً وخمسمائة وخمسة بلايين وتسعمائة وثلاثة وثلاثون ملياراً ومائة وعشرة ملايين ومائة وثلاثة وثلاثون ألف ريال","فقط خمسة عشر بلياراً وخمسمائة وخمسة بلايين وتسعمائة وثلاثة وثلاثون ملياراً ومائة وعشرة ملايين ومائة وثلاثة وثلاثون ألف ليرة سورية لا غير"]
[null,1.5505933110133E+16,"فقط خمسة عشر بلياراً وخمسمائة وخمسة بلايين وتسعمائة وثلاثة وثلاثون ملياراً ومائة وعشرة ملايين ومائة وثلاثة وثلاثون ألف ريال","فقط خمسة عشر بلياراً وخمسمائة وخمسة بلايين وتسعمائة وثلاثة وثلاثون ملياراً ومائة وعشرة ملايين ومائة وثلاثة وثلاثون ألف ريال","فقط خمسة عشر بلياراً وخمسمائة وخمسة بلايين وتسعمائة وثلاثة وثلاثون ملياراً ومائة وعشرة ملايين ومائة وثلاثة وثلاثون ألف ليرة سورية لا غير"]
[null,1.5505933110133E+16,"فقط خمسة عشر بلياراً وخمسمائة وخمسة بلايين وتسعمائة وثلاثة وثلاثون ملياراً ومائة وعشرة ملايين ومائة وثلاثة وثلاثون ألف ريال","فقط خمسة عشر بلياراً وخمسمائة وخمسة بلايين وتسعمائة وثلاثة وثلاثون ملياراً ومائة وعشرة ملايين ومائة وثلاثة وثلاثون ألف ريال","فقط خمسة عشر بلياراً وخمسمائة وخمسة بلايين وتسعمائة وثلاثة وثلاثون ملياراً ومائة وعشرة ملايين ومائة وثلاثة وثلاثون ألف ليرة سورية لا غير"]
[null,1.5505933110133E+16,"فقط خمسة عشر بلياراً وخمسمائة وخمسة بلايين وتسعمائة وثلاثة وثلاثون ملياراً ومائة وعشرة ملايين ومائة وثلاثة وثلاثون ألف ريال","فقط خمسة عشر بلياراً وخمسمائة وخمسة بلايين وتسعمائة وثلاثة وثلاثون ملياراً ومائة وعشرة ملايين ومائة وثلاثة وثلاثون ألف ريال","فقط خمسة عشر بلياراً وخمسمائة وخمسة بلايين وتسعمائة وثلاثة وثلاثون ملياراً ومائة وعشرة ملايين ومائة وثلاثة وثلاثون ألف ليرة سورية لا غير"]
[null,1.5505933110133E+16,"فقط خمسة عشر بلياراً وخمسمائة وخمسة بلايين وتسعمائة وثلاثة وثلاثون ملياراً ومائة وعشرة ملايين ومائة وثلاثة وثلاثون ألف ريال","فقط خمسة عشر بلياراً وخمسمائة وخمسة بلايين وتسعمائة وثلاثة وثلاثون ملياراً ومائة وعشرة ملايين ومائة وثلاثة وثلاثون ألف ريال","فقط خمسة عشر بلياراً وخمسمائة وخمسة بلايين وتسعمائة وثلاثة وثلاثون ملياراً ومائة وعشرة ملايين ومائة وثلاثة وثلاثون ألف ليرة سورية لا غير"]
[null,1.5505933110133E+16,"فقط خمسة عشر بلياراً وخمسمائة وخمسة بلايين وتسعمائة وثلاثة وثلاثون ملياراً ومائة وعشرة ملايين ومائة وثلاثة وثلاثون ألف ريال","فقط خمسة عشر بلياراً وخمسمائة وخمسة بلايين وتسعمائة وثلاثة وثلاثون ملياراً ومائة وعشرة ملايين ومائة وثلاثة وثلاثون ألف ريال","فقط خمسة عشر بلياراً وخمسمائة وخمسة بلايين وتسعمائة وثلاثة وثلاثون ملياراً ومائة وعشرة ملايين ومائة وثلاثة وثلاثون ألف ليرة سورية لا غير"]
[null,1.5505933110133E+16,"فقط خمسة عشر بلياراً وخمسمائة وخمسة بلايين وتسعمائة وثلاثة وثلاثون ملياراً ومائة وعشرة ملايين ومائة وثلاثة وثلاثون ألف ريال","فقط خمسة عشر بلياراً وخمسمائة وخمسة بلايين وتسعمائة وثلاثة وثلاثون ملياراً ومائة وعشرة ملايين ومائة وثلاثة وثلاثون ألف ريال","فقط خمسة عشر بلياراً وخمسمائة وخمسة بلايين وتسعمائة وثلاثة وثلاثون ملياراً ومائة وعشرة ملايين ومائة وثلاثة وثلاثون ألف ليرة سورية لا غير"]
[null,1.6550897022108E+17,"فقط مائة وخمسة وستون بلياراً وخمسمائة وثمانية بلايين وتسعمائة وسبعون ملياراً ومائتان وواحد وعشرون مليوناً وثمانون ألف ريال","فقط مائة وخمسة وستون بلياراً وخمسمائة وثمانية بلايين وتسعمائة وسبعون ملياراً ومائتان وواحد وعشرون مليوناً وثمانون ألف ريال","فقط مائة وخمسة وستون بلياراً وخمسمائة وثمانية بلايين وتسعمائة وسبعون ملياراً ومائتان وواحد وعشرون مليوناً وثمانون ألف ليرة سورية لا غير"]
[null,1.6550897022108E+17,"فقط مائة وخمسة وستون بلياراً وخمسمائة وثمانية بلايين وتسعمائة وسبعون ملياراً ومائتان وواحد وعشرون مليوناً وثمانون ألف ريال","فقط مائة وخمسة وستون بلياراً وخمسمائة وثمانية بلايين وتسعمائة وسبعون ملياراً ومائتان وواحد وعشرون مليوناً وثمانون ألف ريال","فقط مائة وخمسة وستون بلياراً وخمسمائة وثمانية بلايين وتسعمائة وسبعون ملياراً ومائتان وواحد وعشرون مليوناً وثمانون ألف ليرة سورية لا غير"]
[null,1.6550897022108E+17,"فقط مائة وخمسة وستون بلياراً وخمسمائة وثمانية بلايين وتسعمائة وسبعون ملياراً ومائتان وواحد وعشرون مليوناً وثمانون ألف ريال","فقط مائة وخمسة وستون بلياراً وخمسمائة وثمانية بلايين وتسعمائة وسبعون ملياراً ومائتان وواحد وعشرون مليوناً وثمانون ألف ريال","فقط مائة وخمسة وستون بلياراً وخمسمائة وثمانية بلايين وتسعمائة وسبعون ملياراً ومائتان وواحد وعشرون مليوناً وثمانون ألف ليرة سورية لا غير"]
[null,1.6550897022108E+17,"فقط مائة وخمسة وستون بلياراً وخمسمائة وثمانية بلايين وتسعمائة وسبعون ملياراً ومائتان وواحد وعشرون مليوناً وثمانون ألف ريال","فقط مائة وخمسة وستون بلياراً وخمسمائة وثمانية بلايين وتسعمائة وسبعون ملياراً ومائتان وواحد وعشرون مليوناً وثمانون ألف ريال","فقط مائة وخمسة وستون بلياراً وخمسمائة وثمانية بلايين وتسعمائة وسبعون ملياراً ومائتان وواحد وعشرون مليوناً وثمانون ألف ليرة سورية لا غير"]
[null,1.6550897022108E+17,"فقط مائة وخمسة وستون بلياراً وخمسمائة وثمانية بلايين وتسعمائة وسبعون ملياراً ومائتان وواحد وعشرون مليوناً وثمانون ألف ريال","فقط مائة وخمسة وستون بلياراً وخمسمائة وثمانية بلايين وتسعمائة وسبعون ملياراً ومائتان وواحد وعشرون مليوناً وثمانون ألف ريال","فقط مائة وخمسة وستون بلياراً وخمسمائة وثمانية بلايين وتسعمائة وسبعون ملياراً ومائتان وواحد وعشرون مليوناً وثمانون ألف ليرة سورية لا غير"]
[null,1.6550897022108E+17,"فقط مائة وخمسة وستون بلياراً وخمسمائة وثمانية بلايين وتسعمائة وسبعون ملياراً ومائتان وواحد وعشرون مليوناً وثمانون ألف ريال","فقط مائة وخمسة وستون بلياراً وخمسمائة وثمانية بلايين وتسعمائة وسبعون ملياراً ومائتان وواحد وعشرون مليوناً وثمانون ألف ريال","فقط مائة وخمسة وستون بلياراً وخمسمائة وثمانية بلايين وتسعمائة وسبعون ملياراً ومائتان وواحد وعشرون مليوناً وثمانون ألف ليرة سورية لا غير"]
[null,1.6550897022108E+17,"فقط مائة وخمسة وستون بلياراً وخمسمائة وثمانية بلايين وتسعمائة وسبعون ملياراً ومائتان وواحد وعشرون مليوناً وثمانون ألف ريال","فقط مائة وخمسة وستون بلياراً وخمسمائة وثمانية بلايين وتسعمائة وسبعون ملياراً ومائتان وواحد وعشرون مليوناً وثمانون ألف ريال","فقط مائة وخمسة وستون بلياراً وخمسمائة وثمانية بلايين وتسعمائة وسبعون ملياراً ومائتان وواحد وعشرون مليوناً وثمانون ألف ليرة سورية لا غير"]
[null,1.6550897022108E+17,"فقط مائة وخمسة وستون بلياراً وخمسمائة وثمانية بلايين وتسعمائة وسبعون ملياراً ومائتان وواحد وعشرون مليوناً وثمانون ألف ريال","فقط مائة وخمسة وستون بلياراً وخمسمائة وثمانية بلايين وتسعمائة وسبعون ملياراً ومائتان وواحد وعشرون مليوناً وثمانون ألف ريال","فقط مائة وخمسة وستون بلياراً وخمسمائة وثمانية بلايين وتسعمائة وسبعون ملياراً ومائتان وواحد وعشرون مليوناً وثمانون ألف ليرة سورية لا غير"]
[null,1.6550897022108E+17,"فقط مائة وخمسة وستون بلياراً وخمسمائة وثمانية بلايين وتسعمائة وسبعون ملياراً ومائتان وواحد وعشرون مليوناً وثمانون ألف ريال","فقط مائة وخمسة وستون بلياراً وخمسمائة وثمانية بلايين وتسعمائة وسبعون ملياراً ومائتان وواحد وعشرون مليوناً وثمانون ألف ريال","فقط مائة وخمسة وستون بلياراً وخمسمائة وثمانية بلايين وتسعمائة وسبعون ملياراً ومائتان وواحد وعشرون مليوناً وثمانون ألف ليرة سورية لا غير"]
[null,1.6550897022108E+17,"فقط مائة وخمسة وستون بلياراً وخمسمائة وثمانية بلايين وتسعمائة وسبعون ملياراً ومائتان وواحد وعشرون مليوناً وثمانون ألف ريال","فقط مائة وخمسة وستون بلياراً وخمسمائة وثمانية بلايين وتسعمائة وسبعون ملياراً ومائتان وواحد وعشرون مليوناً وثمانون ألف ريال","فقط مائة وخمسة وستون بلياراً وخمسمائة وثمانية بلايين وتسعمائة وسبعون ملياراً ومائتان وواحد وعشرون مليوناً وثمانون ألف ليرة سورية لا غير"]
[null,1.6550897022108E+17,"فقط مائة وخمسة وستون بلياراً وخمسمائة وثمانية بلايين وتسعمائة وسبعون ملياراً ومائتان وواحد وعشرون مليوناً وثمانون ألف ريال","فقط مائة وخمسة وستون بلياراً وخمسمائة وثمانية بلايين وتسعمائة وسبعون ملياراً ومائتان وواحد وعشرون مليوناً وثمانون ألف ريال","فقط مائة وخمسة وستون بلياراً وخمسمائة وثمانية بلايين وتسعمائة وسبعون ملياراً ومائتان وواحد وعشرون مليوناً وثمانون ألف ليرة سورية لا غير"]
[null,1.7655184147752399E+18,"فقط ترليون وسبعمائة وخمسة وستون بلياراً وخمسمائة وثمانية عشر بليوناً وأربعمائة وأربعة عشر ملياراً وسبعمائة وخمسة وسبعون مليوناً ومائتان وأربعون ألف ريال","فقط ترليون وسبعمائة وخمسة وستون بلياراً وخمسمائة وثمانية عشر بليوناً وأربعمائة وأربعة عشر ملياراً وسبعمائة وخمسة وسبعون مليوناً ومائتان وأربعون ألف ريال","فقط ترليون وسبعمائة وخمسة وستون بلياراً وخمسمائة وثمانية عشر بليوناً وأربعمائة وأربعة عشر ملياراً وسبعمائة وخمسة وسبعون مليوناً ومائتان وأربعون ألف ليرة سورية لا غير"]
[null,1.7655184147752399E+18,"فقط ترليون وسبعمائة وخمسة وستون بلياراً وخمسمائة وثمانية عشر بليوناً وأربعمائة وأربعة عشر ملياراً وسبعمائة وخمسة وسبعون مليوناً ومائتان وأربعون ألف ريال","فقط ترليون وسبعمائة وخمسة وستون بلياراً وخمسمائة وثمانية عشر بليوناً وأربعمائة وأربعة عشر ملياراً وسبعمائة وخمسة وسبعون مليوناً ومائتان وأربعون ألف ريال","فقط ترليون وسبعمائة وخمسة وستون بلياراً وخمسمائة وثمانية عشر بليوناً وأربعمائة وأربعة عشر ملياراً وسبعمائة وخمسة وسبعون مليوناً ومائتان وأربعون ألف ليرة سورية لا غير"]
[null,1.1765517959695999E+19,"فقط أحد عشر ترليوناً وسبعمائة وخمسة وستون بلياراً وخمسمائة وسبعة عشر بليوناً وتسعمائة وتسعة وخمسون ملياراً وستمائة وستة وتسعون مليون ريال","فقط أحد عشر ترليوناً وسبعمائة وخمسة وستون بلياراً وخمسمائة وسبعة عشر بليوناً وتسعمائة وتسعة وخمسون ملياراً وستمائة وستة وتسعون مليون ريال","فقط أحد عشر ترليوناً وسبعمائة وخمسة وستون بلياراً وخمسمائة وسبعة عشر بليوناً وتسعمائة وتسعة وخمسون ملياراً وستمائة وستة وتسعون مليون ليرة سورية لا غير"]
[null,1.11765499022111E+20,"فقط مائة وأحد عشر ترليوناً وسبعمائة وخمسة وستون بلياراً وأربعمائة وتسعة وتسعون بليوناً واثنان وعشرون ملياراً ومائة وأحد عشر مليون ريال","فقط مائة وأحد عشر ترليوناً وسبعمائة وخمسة وستون بلياراً وأربعمائة وتسعة وتسعون بليوناً واثنان وعشرون ملياراً ومائة وأحد عشر مليون ريال","فقط مائة وأحد عشر ترليوناً وسبعمائة وخمسة وستون بلياراً وأربعمائة وتسعة وتسعون بليوناً واثنان وعشرون ملياراً ومائة وأحد عشر مليون ليرة سورية لا غير"]
[null,1.11176551655466E+21,"فقط تريليار ومائة وأحد عشر ترليوناً وسبعمائة وخمسة وستون بلياراً وخمسمائة وستة عشر بليوناً وخمسمائة وأربعة وخمسون ملياراً وستمائة وستون مليون ريال","فقط تريليار ومائة وأحد عشر ترليوناً وسبعمائة وخمسة وستون بلياراً وخمسمائة وستة عشر بليوناً وخمسمائة وأربعة وخمسون ملياراً وستمائة وستون مليون ريال","فقط تريليار ومائة وأحد عشر ترليوناً وسبعمائة وخمسة وستون بلياراً وخمسمائة وستة عشر بليوناً وخمسمائة وأربعة وخمسون ملياراً وستمائة وستون مليون ليرة سورية لا غير"]
[null,1.11117655183564E+22,"فقط أحد عشر تريلياراً ومائة وأحد عشر ترليوناً وسبعمائة وخمسة وستون بلياراً وخمسمائة وثمانية عشر بليوناً وثلاثمائة وستة وخمسون ملياراً وأربعمائة مليون ريال","فقط أحد عشر تريلياراً ومائة وأحد عشر ترليوناً وسبعمائة وخمسة وستون بلياراً وخمسمائة وثمانية عشر بليوناً وثلاثمائة وستة وخمسون ملياراً وأربعمائة مليون ريال","فقط أحد عشر تريلياراً ومائة وأحد عشر ترليوناً وسبعمائة وخمسة وستون بلياراً وخمسمائة وثمانية عشر بليوناً وثلاثمائة وستة وخمسون ملياراً وأربعمائة مليون ليرة سورية لا غير"]
[null,1.11111765528191E+23,"فقط مائة وأحد عشر تريلياراً ومائة وأحد عشر ترليوناً وسبعمائة وخمسة وستون بلياراً وخمسمائة وثمانية وعشرون بليوناً ومائة وواحد وتسعون مليار ريال","فقط مائة وأحد عشر تريلياراً ومائة وأحد عشر ترليوناً وسبعمائة وخمسة وستون بلياراً وخمسمائة وثمانية وعشرون بليوناً ومائة وواحد وتسعون مليار ريال","فقط مائة وأحد عشر تريلياراً ومائة وأحد عشر ترليوناً وسبعمائة وخمسة وستون بلياراً وخمسمائة وثمانية وعشرون بليوناً ومائة وواحد وتسعون مليار ليرة سورية لا غير"]
[null,1.11111176553534E+24,"فقط كدرليون ومائة وأحد عشر تريلياراً ومائة وأحد عشر ترليوناً وسبعمائة وخمسة وستون بلياراً وخمسمائة وخمسة وثلاثون بليوناً وثلاثمائة وأربعون مليار ريال","فقط كدرليون ومائة وأحد عشر تريلياراً ومائة وأحد عشر ترليوناً وسبعمائة وخمسة وستون بلياراً وخمسمائة وخمسة وثلاثون بليوناً وثلاثمائة وأربعون مليار ريال","فقط كدرليون ومائة وأحد عشر تريلياراً ومائة وأحد عشر ترليوناً وسبعمائة وخمسة وستون بلياراً وخمسمائة وخمسة وثلاثون بليوناً وثلاثمائة وأربعون مليار ليرة سورية لا غير"]
[null,1.1111111765501E+25,"فقط أحد عشر كدرليوناً ومائة وأحد عشر تريلياراً ومائة وأحد عشر ترليوناً وسبعمائة وخمسة وستون بلياراً وخمسمائة بليون وبليون ريال","فقط أحد عشر كدرليوناً ومائة وأحد عشر تريلياراً ومائة وأحد عشر ترليوناً وسبعمائة وخمسة وستون بلياراً وخمسمائة بليون وبليون ريال","فقط أحد عشر كدرليوناً ومائة وأحد عشر تريلياراً ومائة وأحد عشر ترليوناً وسبعمائة وخمسة وستون بلياراً وخمسمائة بليون وبليون ليرة سورية لا غير"]
[null,1.11111111765432E+26,"فقط مائة وأحد عشر كدرليوناً ومائة وأحد عشر تريلياراً ومائة وأحد عشر ترليوناً وسبعمائة وخمسة وستون بلياراً وأربعمائة واثنان وثلاثون بليون ريال","فقط مائة وأحد عشر كدرليوناً ومائة وأحد عشر تريلياراً ومائة وأحد عشر ترليوناً وسبعمائة وخمسة وستون بلياراً وأربعمائة واثنان وثلاثون بليون ريال","فقط مائة وأحد عشر كدرليوناً ومائة وأحد عشر تريلياراً ومائة وأحد عشر ترليوناً وسبعمائة وخمسة وستون بلياراً وأربعمائة واثنان وثلاثون بليون ليرة سورية لا غير"]
[null,1.5432999997654E+26,"فقط مائة وأربعة وخمسون كدرليوناً وثلاثمائة وتسعة وعشرون تريلياراً وتسعمائة وتسعة وتسعون ترليوناً وتسعمائة وستة وسبعون بلياراً وخمسمائة وأربعون بليون ريال","فقط مائة وأربعة وخمسون كدرليوناً وثلاثمائة وتسعة وعشرون تريلياراً وتسعمائة وتسعة وتسعون ترليوناً وتسعمائة وستة وسبعون بلياراً وخمسمائة وأربعون بليون ريال","فقط مائة وأربعة وخمسون كدرليوناً وثلاثمائة وتسعة وعشرون تريلياراً وتسعمائة وتسعة وتسعون ترليوناً وتسعمائة وستة وسبعون بلياراً وخمسمائة وأربعون بليون ليرة سورية لا غير"]
[null,1.11111111117654E+28,"","",""]

{"sheet":"mine","index":1,"n_rows":48,"n_cols":22,"rows_kept":48,"cut":false,"hidden":false,"merged":[[0,6,1,6],[7,1,8,1]]}
["رقم الايصال","التاريخ","القسم","نوع الخدمة","قيمة الدفع",null,null,null,"القسم",null,"النوع","التوصيف","القيمة","مختلفة","تسليف","رسم سنوي","خدمات","مجموع","النوع","القسم"]
[2628,"2019-07-30",null,null,null,null,null,null,"محاسبة",null,"استكمال رسوم","خدمات",null,10000,0,0,0,10000]
[null,null,null,null,null,null,null,null,"ادارة مشروعات",null,"براءة ذمة","خدمات",null,null,null,null,null,{"$f":"kh_TextNum(mine!$R2,ورقة1!$E$3,ورقة1!$E$4,ورقة1!$E$5,ورقة1!$E$6,$E$7,$E$8,$E$9)","v":"ЭЮШ ЪФСЙ ВбЗЭ ليرة سورية لا غير"}]
[null,null,null,null,null,null,null,null,"ترجمة",null,"اعتراض","خدمات",1000]
[null,null,null,null,null,null,null,null,"اعلام",null,"رسم شهادة","مختلفة",5000]
[null,null,39300,null,null,null,null,null,"رياض اطفال",null,"بدل ضائع مصدقة (1)","مختلفة",5000]
[null,null,null,null,null,null,null,null,"معلم صف",null,"بدل ضائع مصدقة (2)","مختلفة",10000]
[null,null,null,null,null,null,null,null,"دراسات قانونية",null,"بدل ضائع بطاقة","مختلفة",200]
[null,null,null,null,null,null,null,null,"دبلوماسية",null,"بدل ضائع شهادة","مختلفة",5000]
[null,null,null,null,null,null,null,null,null,null,"كشف    (1)","مختلفة",2000]
[null,null,null,null,null,null,null,null,null,null,"كشف    (6)","مختلفة",5000]
[null,null,null,null,null,null,null,null,null,null,"رسم اختبار ماجستير","مختلفة",3000]
[null,null,null,null,null,null,null,null,null,null,"رسم تسجيل","تسليف+ رسم سنوي",900]
[null,null,null,null,null,null,null,null,null,null,"مصدقة تخرج بديلة","مختلفة",5000]
[null,null,null,null,null,null,null,null,null,null,"مدمج","خدمات"]
[]
[]
[]
[]
[]
[]
[]
[null,null,null,null,null,null,null,null,null,null,null,null,null,null,null,null,null,null,null,null,null,{"$f":"kh_TextNum($R2,ورقة1!$E$3,ورقة1!$E$4,ورقة1!$E$5,ورقة1!$E$6,$E$7,$E$8,$E$9)","v":"ЭЮШ ЪФСЙ ВбЗЭ ليرة سورية لا غير"}]
[]
[]
[]
[]
[]
[]
[]
[]
[]
[]
[]
[]
[]
[]
[]
[]
[]
[]
[]
[]
[]
[]
[]
[]
[null,null,null,null,null,null,null,"فقط عشرة آلاف ليرة سورية لا غير"]

{"sheet":"a","index":2,"n_rows":47,"n_cols":18,"rows_kept":47,"cut":false,"hidden":false,"merged":[]}
["م","رقم","تاريخ",null,null,null,null,null,"نوع","قسم"]
[null,2621,"2001-12-31",null,null,null,1000,1000,"اعتراض","ادارة مشروعات",null,null,null,null,null,null,null,1000]
[]
[]
[]
[]
[]
[]
[]
[]
[null,null,null,null,null,null,null,null,null,null,null,{"$f":"kh_TextNum($R2,ورقة1!$E$3,ورقة1!$E$4,ورقة1!$E$5,ورقة1!$E$6,$E$7,$E$8,$E$9)","v":"ЭЮШ ГбЭ ليرة سورية لا غير"}]
[]
[]
[]
[]
[]
[]
[]
[]
[]
[]
[]
[]
[]
[]
[]
[]
[]
[]
[]
[]
[]
[]
[]
[]
[]
[]
[]
[]
[]
[]
[]
[]
[]
[]
[]
[null,null,null,null,null,null,null,1000]